{"text_format":"3","workbook":"xlsx","n_sheets":17,"sheets":["单位财务收支预算总表01-1","单位收入预算表01-2","单位支出预算表01-3","单位财政拨款收支预算总表02-1","一般公共预算支出预算表02-2","一般公共预算“三公”经费支出预算表03","单位基本支出预算表04","单位项目支出预算表05-1","单位项目支出绩效目标表05-2","单位政府性基金预算表06","单位政府采购预算表07","单位政府购买服务预算表08","省对下转移支付预算表09-1","省对下转移支付绩效目标表09-2","新增资产配置表10","中央转移支付补助项目支出预算表11","单位项目支出中期规划预算表12"],"read":"whole","date_system":"1900"}

{"sheet":"单位财务收支预算总表01-1","index":0,"n_rows":21,"n_cols":4,"rows_kept":21,"merged":[[1,0,1,3],[2,0,2,1],[3,0,3,1],[3,2,3,3],[4,0,5,0],[4,1,5,1],[4,2,5,2],[4,3,5,3]]}
[{"$nulls":3},"预算01-1表"]
["2026年单位财务收支预算总表"]
[{"$f":"\"单位名称：\"&\"云南省体育科学研究所\"","v":"单位名称：云南省体育科学研究所"},null,null,"单位:元"]
["收        入",null,"支        出"]
["项      目","预算数","项目（按功能分类）","预算数"]
[]
["一、一般公共预算拨款收入",{"v":9575742.56,"d":"9,575,742.56"},{"$f":"\"一\"&\"、\"&\"科学技术支出\"","v":"一、科学技术支出"},{"v":8833031.71,"d":"8,833,031.71"}]
["二、政府性基金预算拨款收入",{"v":25690400,"d":"25,690,400.00"},{"$f":"\"二\"&\"、\"&\"社会保障和就业支出\"","v":"二、社会保障和就业支出"},{"v":693009.72,"d":"693,009.72"}]
["三、国有资本经营预算拨款收入",null,{"$f":"\"三\"&\"、\"&\"卫生健康支出\"","v":"三、卫生健康支出"},{"v":679877.24,"d":"679,877.24"}]
["四、财政专户管理资金收入",null,{"$f":"\"四\"&\"、\"&\"住房保障支出\"","v":"四、住房保障支出"},{"v":469823.89,"d":"469,823.89"}]
["五、单位资金",{"v":700000,"d":"700,000.00"},{"$f":"\"五\"&\"、\"&\"其他支出\"","v":"五、其他支出"},{"v":26170837.48,"d":"26,170,837.48"}]
["1、事业收入"]
["2、事业单位经营收入"]
["3、上级补助收入",{"v":700000,"d":"700,000.00"}]
["4、附属单位上缴收入"]
["5、其他收入"]
["本年收入合计",{"v":35966142.56,"d":"35,966,142.56"},"本年支出合计",{"v":36846580.04,"d":"36,846,580.04"}]
["上年结转结余",{"v":880437.48,"d":"880,437.48"},"年终结转结余"]
["1、财政拨款结转结余",{"v":880437.48,"d":"880,437.48"},"1、财政拨款结转结余"]
["2、非财政拨款结余",null,"2、非财政拨款结余"]
["收  入  总  计",{"v":36846580.04,"d":"36,846,580.04"},"支 出 总 计",{"v":36846580.04,"d":"36,846,580.04"}]

{"sheet":"单位收入预算表01-2","index":1,"n_rows":9,"n_cols":19,"rows_kept":9,"merged":[[0,17,0,18],[1,0,1,18],[2,0,2,3],[2,17,2,18],[3,0,5,0],[3,1,5,1],[3,2,5,2],[3,3,3,13],[3,14,3,18],[4,3,5,3],[4,4,5,4],[4,5,5,5],[4,6,5,6],[4,7,5,7],[4,8,4,13],[4,14,5,14],[4,15,5,15],[4,16,5,16],[4,17,5,17],[4,18,5,18]]}
[{"$nulls":17},"预算01-2表"]
["2026年单位收入预算表"]
[{"$f":"\"单位名称：\"&\"云南省体育科学研究所\"","v":"单位名称：云南省体育科学研究所"},{"$nulls":16},"单位:元","单位:元"]
["部门（单位）代码","部门（单位）名称","合计","本年收入",{"$nulls":10},"上年结转结余"]
[{"$nulls":3},"小计","一般公共预算","政府性基金预算","国有资本经营预算","财政专户管理资金","单位资金收入",null,"事业单位经营收入","上级补助收入","附属单位上缴收入","其他收入","小计","一般公共预算","政府性基金预算","国有资本经营预算","非财政拨款结余"]
[{"$nulls":8},"小计","事业收入","事业单位经营收入","上级补助收入","附属单位上缴收入","其他收入"]
[1,2,3,4,5,6,7,8,9,10,11,12,13,14,15,16,17,18,19]
["109024","云南省体育科学研究所",{"v":36846580.04,"d":"36,846,580.04"},{"v":35966142.56,"d":"35,966,142.56"},{"v":9575742.56,"d":"9,575,742.56"},{"v":25690400,"d":"25,690,400.00"},null,null,{"v":700000,"d":"700,000.00"},null,null,{"v":700000,"d":"700,000.00"},null,null,{"v":880437.48,"d":"880,437.48"},{"v":400000,"d":"400,000.00"},{"v":480437.48,"d":"480,437.48"}]
["合计",null,{"v":36846580.04,"d":"36,846,580.04"},{"v":35966142.56,"d":"35,966,142.56"},{"v":9575742.56,"d":"9,575,742.56"},{"v":25690400,"d":"25,690,400.00"},null,null,{"v":700000,"d":"700,000.00"},null,null,{"v":700000,"d":"700,000.00"},null,null,{"v":880437.48,"d":"880,437.48"},{"v":400000,"d":"400,000.00"},{"v":480437.48,"d":"480,437.48"}]

{"sheet":"单位支出预算表01-3","index":2,"n_rows":27,"n_cols":15,"rows_kept":27,"merged":[[1,0,1,14],[2,0,2,11],[3,0,4,0],[3,1,4,1],[3,2,4,2],[3,3,3,5],[3,6,4,6],[3,7,4,7],[3,8,4,8],[3,9,3,14],[26,0,26,1]]}
[{"$nulls":14},"预算01-3表"]
["2026年单位支出预算表"]
[{"$f":"\"单位名称：\"&\"云南省体育科学研究所\"","v":"单位名称：云南省体育科学研究所"},{"$nulls":13},"单位:元"]
["科目编码","科目名称","合计","一般公共预算",null,null,"政府性基金预算","国有资本经营预算","财政专户管理的支出","单位资金","事业支出","事业单位\n经营支出","上级补助支出","附属单位补助支出","其他支出"]
[{"$nulls":3},"小计","基本支出","项目支出",{"$nulls":3},"小计","事业支出","事业单位\n经营支出","上级补助支出","附属单位补助支出","其他支出"]
[1,2,3,4,5,6,7,8,9,10,11,12,13,14,15]
["206","科学技术支出",{"v":8833031.71,"d":"8,833,031.71"},{"v":8133031.71,"d":"8,133,031.71"},{"v":5471331.71,"d":"5,471,331.71"},{"v":2661700,"d":"2,661,700.00"},{"$nulls":3},{"v":700000,"d":"700,000.00"},null,null,{"v":700000,"d":"700,000.00"}]
["20603","应用研究",{"v":8833031.71,"d":"8,833,031.71"},{"v":8133031.71,"d":"8,133,031.71"},{"v":5471331.71,"d":"5,471,331.71"},{"v":2661700,"d":"2,661,700.00"},{"$nulls":3},{"v":700000,"d":"700,000.00"},null,null,{"v":700000,"d":"700,000.00"}]
["2060301","机构运行",{"v":8833031.71,"d":"8,833,031.71"},{"v":8133031.71,"d":"8,133,031.71"},{"v":5471331.71,"d":"5,471,331.71"},{"v":2661700,"d":"2,661,700.00"},{"$nulls":3},{"v":700000,"d":"700,000.00"},null,null,{"v":700000,"d":"700,000.00"}]
["208","社会保障和就业支出",{"v":693009.72,"d":"693,009.72"},{"v":693009.72,"d":"693,009.72"},{"v":693009.72,"d":"693,009.72"}]
["20805","行政事业单位养老支出",{"v":661116.86,"d":"661,116.86"},{"v":661116.86,"d":"661,116.86"},{"v":661116.86,"d":"661,116.86"}]
["2080502","事业单位离退休",{"v":6480,"d":"6,480.00"},{"v":6480,"d":"6,480.00"},{"v":6480,"d":"6,480.00"}]
["2080505","机关事业单位基本养老保险缴费支出",{"v":654636.86,"d":"654,636.86"},{"v":654636.86,"d":"654,636.86"},{"v":654636.86,"d":"654,636.86"}]
["20899","其他社会保障和就业支出",{"v":31892.86,"d":"31,892.86"},{"v":31892.86,"d":"31,892.86"},{"v":31892.86,"d":"31,892.86"}]
["2089999","其他社会保障和就业支出",{"v":31892.86,"d":"31,892.86"},{"v":31892.86,"d":"31,892.86"},{"v":31892.86,"d":"31,892.86"}]
["210","卫生健康支出",{"v":679877.24,"d":"679,877.24"},{"v":679877.24,"d":"679,877.24"},{"v":679877.24,"d":"679,877.24"}]
["21011","行政事业单位医疗",{"v":679877.24,"d":"679,877.24"},{"v":679877.24,"d":"679,877.24"},{"v":679877.24,"d":"679,877.24"}]
["2101102","事业单位医疗",{"v":409148.04,"d":"409,148.04"},{"v":409148.04,"d":"409,148.04"},{"v":409148.04,"d":"409,148.04"}]
["2101103","公务员医疗补助",{"v":251892.2,"d":"251,892.20"},{"v":251892.2,"d":"251,892.20"},{"v":251892.2,"d":"251,892.20"}]
["2101199","其他行政事业单位医疗支出",{"v":18837,"d":"18,837.00"},{"v":18837,"d":"18,837.00"},{"v":18837,"d":"18,837.00"}]
["221","住房保障支出",{"v":469823.89,"d":"469,823.89"},{"v":469823.89,"d":"469,823.89"},{"v":469823.89,"d":"469,823.89"}]
["22102","住房改革支出",{"v":469823.89,"d":"469,823.89"},{"v":469823.89,"d":"469,823.89"},{"v":469823.89,"d":"469,823.89"}]
["2210201","住房公积金",{"v":469823.89,"d":"469,823.89"},{"v":469823.89,"d":"469,823.89"},{"v":469823.89,"d":"469,823.89"}]
["229","其他支出",{"v":26170837.48,"d":"26,170,837.48"},{"$nulls":3},{"v":26170837.48,"d":"26,170,837.48"}]
["22960","彩票公益金安排的支出",{"v":26170837.48,"d":"26,170,837.48"},{"$nulls":3},{"v":26170837.48,"d":"26,170,837.48"}]
["2296003","用于体育事业的彩票公益金支出",{"v":26170837.48,"d":"26,170,837.48"},{"$nulls":3},{"v":26170837.48,"d":"26,170,837.48"}]
["合  计","合  计",{"v":36846580.04,"d":"36,846,580.04"},{"v":9975742.56,"d":"9,975,742.56"},{"v":7314042.56,"d":"7,314,042.56"},{"v":2661700,"d":"2,661,700.00"},{"v":26170837.48,"d":"26,170,837.48"},null,null,{"v":700000,"d":"700,000.00"},null,null,{"v":700000,"d":"700,000.00"}]

{"sheet":"单位财政拨款收支预算总表02-1","index":3,"n_rows":16,"n_cols":4,"rows_kept":16,"merged":[[1,0,1,3],[2,0,2,1],[3,0,3,1],[3,2,3,3],[4,0,5,0],[4,1,5,1],[4,2,5,2],[4,3,5,3]]}
[{"$nulls":3},"预算02-1表"]
["2026年财政拨款收支预算总表"]
[{"$f":"\"单位名称：\"&\"云南省体育科学研究所\"","v":"单位名称：云南省体育科学研究所"},null,null,"单位:元"]
["收        入",null,"支        出"]
["项      目","预算数","支出功能分类科目","预算数"]
[]
["一、本年收入",{"v":35266142.56,"d":"35,266,142.56"},"一、本年支出",{"v":36146580.04,"d":"36,146,580.04"}]
["（一）一般公共预算拨款",{"v":9575742.56,"d":"9,575,742.56"},{"$f":"\"（一）\"&\"科学技术支出\"","v":"（一）科学技术支出"},{"v":8133031.71,"d":"8,133,031.71"}]
["（二）政府性基金预算拨款",{"v":25690400,"d":"25,690,400.00"},{"$f":"\"（二）\"&\"社会保障和就业支出\"","v":"（二）社会保障和就业支出"},{"v":693009.72,"d":"693,009.72"}]
["（三）国有资本经营预算拨款",null,{"$f":"\"（三）\"&\"卫生健康支出\"","v":"（三）卫生健康支出"},{"v":679877.24,"d":"679,877.24"}]
["二、上年结转",{"v":880437.48,"d":"880,437.48"},{"$f":"\"（四）\"&\"住房保障支出\"","v":"（四）住房保障支出"},{"v":469823.89,"d":"469,823.89"}]
["（一）一般公共预算拨款",{"v":400000,"d":"400,000.00"},{"$f":"\"（五）\"&\"其他支出\"","v":"（五）其他支出"},{"v":26170837.48,"d":"26,170,837.48"}]
["（二）政府性基金预算拨款",{"v":480437.48,"d":"480,437.48"}]
["（三）国有资本经营预算拨款"]
[null,null,"二、年终结转结余"]
["收 入 总 计",{"v":36146580.04,"d":"36,146,580.04"},"支 出 总 计",{"v":36146580.04,"d":"36,146,580.04"}]

{"sheet":"一般公共预算支出预算表02-2","index":4,"n_rows":24,"n_cols":7,"rows_kept":24,"merged":[[1,0,1,6],[2,0,2,4],[3,0,3,1],[3,2,4,2],[3,3,3,5],[3,6,4,6],[23,0,23,1]]}
[{"$nulls":6},"预算02-2表"]
["2026年一般公共预算支出预算表（按功能科目分类）"]
[{"$f":"\"单位名称：\"&\"云南省体育科学研究所\"","v":"单位名称：云南省体育科学研究所"},{"$nulls":5},"单位:元"]
["部门预算支出功能分类科目",null,"合计","基本支出",null,null,"项目支出"]
["科目编码","科目名称",null,"小计","人员经费","公用经费"]
["1","2","3",null,"4","5","6"]
["206","科学技术支出",{"v":7733031.71,"d":"7,733,031.71"},{"v":5471331.71,"d":"5,471,331.71"},{"v":5008864,"d":"5,008,864.00"},{"v":462467.71,"d":"462,467.71"},{"v":2261700,"d":"2,261,700.00"}]
["20603","应用研究",{"v":7733031.71,"d":"7,733,031.71"},{"v":5471331.71,"d":"5,471,331.71"},{"v":5008864,"d":"5,008,864.00"},{"v":462467.71,"d":"462,467.71"},{"v":2261700,"d":"2,261,700.00"}]
["2060301","机构运行",{"v":7733031.71,"d":"7,733,031.71"},{"v":5471331.71,"d":"5,471,331.71"},{"v":5008864,"d":"5,008,864.00"},{"v":462467.71,"d":"462,467.71"},{"v":2261700,"d":"2,261,700.00"}]
["208","社会保障和就业支出",{"v":693009.72,"d":"693,009.72"},{"v":693009.72,"d":"693,009.72"},{"v":686529.72,"d":"686,529.72"},{"v":6480,"d":"6,480.00"}]
["20805","行政事业单位养老支出",{"v":661116.86,"d":"661,116.86"},{"v":661116.86,"d":"661,116.86"},{"v":654636.86,"d":"654,636.86"},{"v":6480,"d":"6,480.00"}]
["2080502","事业单位离退休",{"v":6480,"d":"6,480.00"},{"v":6480,"d":"6,480.00"},null,{"v":6480,"d":"6,480.00"}]
["2080505","机关事业单位基本养老保险缴费支出",{"v":654636.86,"d":"654,636.86"},{"v":654636.86,"d":"654,636.86"},{"v":654636.86,"d":"654,636.86"}]
["20899","其他社会保障和就业支出",{"v":31892.86,"d":"31,892.86"},{"v":31892.86,"d":"31,892.86"},{"v":31892.86,"d":"31,892.86"}]
["2089999","其他社会保障和就业支出",{"v":31892.86,"d":"31,892.86"},{"v":31892.86,"d":"31,892.86"},{"v":31892.86,"d":"31,892.86"}]
["210","卫生健康支出",{"v":679877.24,"d":"679,877.24"},{"v":679877.24,"d":"679,877.24"},{"v":679877.24,"d":"679,877.24"}]
["21011","行政事业单位医疗",{"v":679877.24,"d":"679,877.24"},{"v":679877.24,"d":"679,877.24"},{"v":679877.24,"d":"679,877.24"}]
["2101102","事业单位医疗",{"v":409148.04,"d":"409,148.04"},{"v":409148.04,"d":"409,148.04"},{"v":409148.04,"d":"409,148.04"}]
["2101103","公务员医疗补助",{"v":251892.2,"d":"251,892.20"},{"v":251892.2,"d":"251,892.20"},{"v":251892.2,"d":"251,892.20"}]
["2101199","其他行政事业单位医疗支出",{"v":18837,"d":"18,837.00"},{"v":18837,"d":"18,837.00"},{"v":18837,"d":"18,837.00"}]
["221","住房保障支出",{"v":469823.89,"d":"469,823.89"},{"v":469823.89,"d":"469,823.89"},{"v":469823.89,"d":"469,823.89"}]
["22102","住房改革支出",{"v":469823.89,"d":"469,823.89"},{"v":469823.89,"d":"469,823.89"},{"v":469823.89,"d":"469,823.89"}]
["2210201","住房公积金",{"v":469823.89,"d":"469,823.89"},{"v":469823.89,"d":"469,823.89"},{"v":469823.89,"d":"469,823.89"}]
["合  计","合  计",{"v":9575742.56,"d":"9,575,742.56"},{"v":7314042.56,"d":"7,314,042.56"},{"v":6845094.85,"d":"6,845,094.85"},{"v":468947.71,"d":"468,947.71"},{"v":2261700,"d":"2,261,700.00"}]

{"sheet":"一般公共预算“三公”经费支出预算表03","index":5,"n_rows":7,"n_cols":6,"rows_kept":7,"merged":[[1,0,1,5],[2,0,2,3],[3,0,4,0],[3,1,4,1],[3,2,3,4],[3,5,4,5]]}
[{"$nulls":5},"预算03表"]
["2026年一般公共预算“三公”经费支出预算表"]
[{"$f":"\"单位名称：\"&\"云南省体育科学研究所\"","v":"单位名称：云南省体育科学研究所"},{"$nulls":4},"单位：元"]
["“三公”经费合计","因公出国（境）费","公务用车购置及运行费",null,null,"公务接待费"]
[null,null,"小计","公务用车购置费","公务用车运行费"]
[1,2,3,4,5,6]
[{"v":73100,"d":"73,100.00"},null,{"v":73100,"d":"73,100.00"},null,{"v":73100,"d":"73,100.00"}]

{"sheet":"单位基本支出预算表04","index":6,"n_rows":30,"n_cols":23,"rows_kept":30,"merged":[[1,0,1,22],[2,0,2,6],[3,0,6,0],[3,1,6,1],[3,2,6,2],[3,3,6,3],[3,4,6,4],[3,5,6,5],[3,6,6,6],[3,7,3,22],[4,7,6,7],[4,8,4,12],[4,13,4,15],[4,16,6,16],[4,17,4,22],[5,8,6,8],[5,9,6,9],[5,10,6,10],[5,11,6,11],[5,12,6,12],[5,13,6,13],[5,14,6,14],[5,15,6,15],[5,17,6,17],[5,18,6,18],[5,19,6,19],[5,20,6,20],[5,21,6,21],[5,22,6,22],[29,0,29,6]]}
[{"$nulls":22},"预算04表"]
["2026年单位基本支出预算表"]
[{"$f":"\"单位名称：\"&\"云南省体育科学研究所\"","v":"单位名称：云南省体育科学研究所"},{"$nulls":21},"单位：元"]
["单位名称","项目代码","项目名称","功能科目编码","功能科目名称","经济科目编码","经济科目名称","资金来源"]
[{"$nulls":7},"合计","一般公共预算",{"$nulls":4},"财政拨款结转结余",null,null,"财政专户管理资金","单位资金"]
[{"$nulls":8},"全年数","已提前安排","抵扣上年垫付资金","本次下达","另文下达","一般公共预算","政府性基金预算","国有资本经营预算",null,"小计","事业收入","事业单位\n经营收入","上级补助收入","附属单位上缴收入","其他收入"]
[]
[1,2,3,4,5,6,7,8,9,10,11,12,13,14,15,16,17,18,19,20,21,22,23]
["云南省体育科学研究所",{"$nulls":6},{"v":7314042.56,"d":"7,314,042.56"},{"v":7314042.56,"d":"7,314,042.56"},{"v":1675363.4,"d":"1,675,363.40"},null,{"v":5638679.16,"d":"5,638,679.16"}]
["云南省体育科学研究所","530000210000000043314","事业人员支出工资","2060301","机构运行","30101","基本工资",{"v":1754880,"d":"1,754,880.00"},{"v":1754880,"d":"1,754,880.00"},{"v":438720,"d":"438,720.00"},null,{"v":1316160,"d":"1,316,160.00"}]
["云南省体育科学研究所","530000210000000043314","事业人员支出工资","2060301","机构运行","30102","津贴补贴",{"v":216,"d":"216.00"},{"v":216,"d":"216.00"},{"v":54,"d":"54.00"},null,{"v":162,"d":"162.00"}]
["云南省体育科学研究所","530000210000000043314","事业人员支出工资","2060301","机构运行","30103","奖金",{"v":146240,"d":"146,240.00"},{"v":146240,"d":"146,240.00"},{"v":36560,"d":"36,560.00"},null,{"v":109680,"d":"109,680.00"}]
["云南省体育科学研究所","530000210000000043314","事业人员支出工资","2060301","机构运行","30107","绩效工资",{"v":2607528,"d":"2,607,528.00"},{"v":2607528,"d":"2,607,528.00"},{"v":651882,"d":"651,882.00"},null,{"v":1955646,"d":"1,955,646.00"}]
["云南省体育科学研究所","530000210000000043315","社会保障缴费","2080505","机关事业单位基本养老保险缴费支出","30108","机关事业单位基本养老保险缴费",{"v":654636.86,"d":"654,636.86"},{"v":654636.86,"d":"654,636.86"},{"v":163659.22,"d":"163,659.22"},null,{"v":490977.64,"d":"490,977.64"}]
["云南省体育科学研究所","530000210000000043315","社会保障缴费","2089999","其他社会保障和就业支出","30112","其他社会保障缴费",{"v":31892.86,"d":"31,892.86"},{"v":31892.86,"d":"31,892.86"},{"v":7973.22,"d":"7,973.22"},null,{"v":23919.64,"d":"23,919.64"}]
["云南省体育科学研究所","530000210000000043315","社会保障缴费","2101102","事业单位医疗","30110","职工基本医疗保险缴费",{"v":409148.04,"d":"409,148.04"},{"v":409148.04,"d":"409,148.04"},{"v":102287.01,"d":"102,287.01"},null,{"v":306861.03,"d":"306,861.03"}]
["云南省体育科学研究所","530000210000000043315","社会保障缴费","2101103","公务员医疗补助","30111","公务员医疗补助缴费",{"v":251892.2,"d":"251,892.20"},{"v":251892.2,"d":"251,892.20"},{"v":62973.05,"d":"62,973.05"},null,{"v":188919.15,"d":"188,919.15"}]
["云南省体育科学研究所","530000210000000043315","社会保障缴费","2101199","其他行政事业单位医疗支出","30112","其他社会保障缴费",{"v":18837,"d":"18,837.00"},{"v":18837,"d":"18,837.00"},{"v":18837,"d":"18,837.00"}]
["云南省体育科学研究所","530000210000000043317","住房公积金","2210201","住房公积金","30113","住房公积金",{"v":469823.89,"d":"469,823.89"},{"v":469823.89,"d":"469,823.89"},{"v":117455.97,"d":"117,455.97"},null,{"v":352367.92,"d":"352,367.92"}]
["云南省体育科学研究所","530000210000000043320","公车购置及运维费","2060301","机构运行","30231","公务用车运行维护费",{"v":73100,"d":"73,100.00"},{"v":73100,"d":"73,100.00"},null,null,{"v":73100,"d":"73,100.00"}]
["云南省体育科学研究所","530000210000000043324","工会经费","2060301","机构运行","30228","工会经费",{"v":90177.28,"d":"90,177.28"},{"v":90177.28,"d":"90,177.28"},{"v":22544.32,"d":"22,544.32"},null,{"v":67632.96,"d":"67,632.96"}]
["云南省体育科学研究所","530000210000000043325","一般公用经费","2060301","机构运行","30201","办公费",{"v":16000,"d":"16,000.00"},{"v":16000,"d":"16,000.00"},{"v":4000,"d":"4,000.00"},null,{"v":12000,"d":"12,000.00"}]
["云南省体育科学研究所","530000210000000043325","一般公用经费","2060301","机构运行","30209","物业管理费",{"v":96000,"d":"96,000.00"},{"v":96000,"d":"96,000.00"},null,null,{"v":96000,"d":"96,000.00"}]
["云南省体育科学研究所","530000210000000043325","一般公用经费","2060301","机构运行","30216","培训费",{"v":433.5,"d":"433.50"},{"v":433.5,"d":"433.50"},108.38,null,325.12]
["云南省体育科学研究所","530000210000000043325","一般公用经费","2060301","机构运行","30227","委托业务费",{"v":36000,"d":"36,000.00"},{"v":36000,"d":"36,000.00"},{"v":9000,"d":"9,000.00"},null,{"v":27000,"d":"27,000.00"}]
["云南省体育科学研究所","530000210000000043325","一般公用经费","2060301","机构运行","30299","其他商品和服务支出",{"v":149056.93,"d":"149,056.93"},{"v":149056.93,"d":"149,056.93"},{"v":37264.23,"d":"37,264.23"},null,{"v":111792.7,"d":"111,792.70"}]
["云南省体育科学研究所","530000210000000043325","一般公用经费","2060301","机构运行","31002","办公设备购置",{"v":1700,"d":"1,700.00"},{"v":1700,"d":"1,700.00"},{"v":425,"d":"425.00"},null,{"v":1275,"d":"1,275.00"}]
["云南省体育科学研究所","530000210000000043325","一般公用经费","2080502","事业单位离退休","30299","其他商品和服务支出",{"v":6480,"d":"6,480.00"},{"v":6480,"d":"6,480.00"},{"v":1620,"d":"1,620.00"},null,{"v":4860,"d":"4,860.00"}]
["云南省体育科学研究所","530000261100004418900","体科所科研测试专项经费","2060301","机构运行","30107","绩效工资",{"v":500000,"d":"500,000.00"},{"v":500000,"d":"500,000.00"},null,null,{"v":500000,"d":"500,000.00"}]
["合  计",{"$nulls":6},{"v":7314042.56,"d":"7,314,042.56"},{"v":7314042.56,"d":"7,314,042.56"},{"v":1675363.4,"d":"1,675,363.40"},null,{"v":5638679.16,"d":"5,638,679.16"}]

{"sheet":"单位项目支出预算表05-1","index":7,"n_rows":43,"n_cols":23,"rows_kept":43,"merged":[[1,0,1,22],[2,0,2,8],[3,0,5,0],[3,1,5,1],[3,2,5,2],[3,3,5,3],[3,4,5,4],[3,5,5,5],[3,6,5,6],[3,7,5,7],[3,8,5,8],[3,9,3,12],[3,13,3,15],[3,16,5,16],[3,17,3,22],[4,9,4,10],[4,11,5,11],[4,12,5,12],[4,13,5,13],[4,14,5,14],[4,15,5,15],[4,17,5,17],[4,18,5,18],[4,19,5,19],[4,20,5,20],[4,21,5,21],[4,22,5,22],[42,0,42,7]]}
[{"$nulls":22},"预算05-1表"]
["2026年单位项目支出预算表"]
[{"$f":"\"单位名称：\"&\"云南省体育科学研究所\"","v":"单位名称：云南省体育科学研究所"},"单位名称：云南省体育科学研究所",{"$nulls":20},"单位：元"]
["项目分类","项目代码","项目名称","项目单位","功能科目编码","功能科目名称","经济科目编码","经济科目名称","合计","本年拨款",{"$nulls":3},"财政拨款结转结余",null,null,"财政专户管理资金","单位资金"]
[{"$nulls":9},"一般公共预算",null,"政府性基金预算","国有资本经营预算","一般公共预算","政府性基金预算","国有资本经营预算",null,"小计","事业收入","事业单位\n经营收入","上级补助收入","附属单位上缴收入","其他收入"]
[{"$nulls":9},"小计","其中：本次下达"]
[1,2,3,4,5,6,7,8,9,10,11,12,13,14,15,16,17,18,19,20,21,22,23]
[null,null,"其他人员支出",{"$nulls":5},{"v":104000,"d":"104,000.00"},{"v":104000,"d":"104,000.00"},{"v":104000,"d":"104,000.00"}]
["民生类","530000231100001105819","其他人员支出","云南省体育科学研究所","2060301","机构运行","30199","其他工资福利支出",{"v":104000,"d":"104,000.00"},{"v":104000,"d":"104,000.00"},{"v":104000,"d":"104,000.00"}]
[null,null,"全国常态化全民健身活动状况调查及国民体质监测工作专项经费",{"$nulls":5},{"v":700000,"d":"700,000.00"},{"$nulls":8},{"v":700000,"d":"700,000.00"},null,null,{"v":700000,"d":"700,000.00"}]
["事业发展类","530000261100004495005","全国常态化全民健身活动状况调查及国民体质监测工作专项经费","云南省体育科学研究所","2060301","机构运行","30216","培训费",{"v":80000,"d":"80,000.00"},{"$nulls":8},{"v":80000,"d":"80,000.00"},null,null,{"v":80000,"d":"80,000.00"}]
["事业发展类","530000261100004495005","全国常态化全民健身活动状况调查及国民体质监测工作专项经费","云南省体育科学研究所","2060301","机构运行","30226","劳务费",{"v":20000,"d":"20,000.00"},{"$nulls":8},{"v":20000,"d":"20,000.00"},null,null,{"v":20000,"d":"20,000.00"}]
["事业发展类","530000261100004495005","全国常态化全民健身活动状况调查及国民体质监测工作专项经费","云南省体育科学研究所","2060301","机构运行","30227","委托业务费",{"v":600000,"d":"600,000.00"},{"$nulls":8},{"v":600000,"d":"600,000.00"},null,null,{"v":600000,"d":"600,000.00"}]
[null,null,"人才发展专项资金",{"$nulls":5},{"v":90000,"d":"90,000.00"},{"v":90000,"d":"90,000.00"},{"v":90000,"d":"90,000.00"}]
["专项业务类","530000261100005181225","人才发展专项资金","云南省体育科学研究所","2060301","机构运行","30218","专用材料费",{"v":90000,"d":"90,000.00"},{"v":90000,"d":"90,000.00"},{"v":90000,"d":"90,000.00"}]
[null,null,"提前下达2025年中央集中彩票公益金支持体育事业专项资金",{"$nulls":5},{"v":39381.9,"d":"39,381.90"},{"$nulls":5},{"v":39381.9,"d":"39,381.90"}]
["事业发展类","530000251100003860124","提前下达2025年中央集中彩票公益金支持体育事业专项资金","云南省体育科学研究所","2296003","用于体育事业的彩票公益金支出","30211","差旅费",{"v":39381.9,"d":"39,381.90"},{"$nulls":5},{"v":39381.9,"d":"39,381.90"}]
[null,null,"体科所科研测试专项资金",{"$nulls":5},{"v":1088800,"d":"1,088,800.00"},{"v":688800,"d":"688,800.00"},{"v":688800,"d":"688,800.00"},null,null,{"v":400000,"d":"400,000.00"}]
["其他运转类","530000251100003346995","体科所科研测试专项资金","云南省体育科学研究所","2060301","机构运行","30201","办公费",{"v":20000,"d":"20,000.00"},{"$nulls":4},{"v":20000,"d":"20,000.00"}]
["其他运转类","530000251100003346995","体科所科研测试专项资金","云南省体育科学研究所","2060301","机构运行","30205","水费",{"v":20000,"d":"20,000.00"},{"v":20000,"d":"20,000.00"},{"v":20000,"d":"20,000.00"}]
["其他运转类","530000251100003346995","体科所科研测试专项资金","云南省体育科学研究所","2060301","机构运行","30206","电费",{"v":608800,"d":"608,800.00"},{"v":608800,"d":"608,800.00"},{"v":608800,"d":"608,800.00"}]
["其他运转类","530000251100003346995","体科所科研测试专项资金","云南省体育科学研究所","2060301","机构运行","30209","物业管理费",{"v":60000,"d":"60,000.00"},{"v":60000,"d":"60,000.00"},{"v":60000,"d":"60,000.00"}]
["其他运转类","530000251100003346995","体科所科研测试专项资金","云南省体育科学研究所","2060301","机构运行","30213","维修（护）费",{"v":3800,"d":"3,800.00"},{"$nulls":4},{"v":3800,"d":"3,800.00"}]
["其他运转类","530000251100003346995","体科所科研测试专项资金","云南省体育科学研究所","2060301","机构运行","30227","委托业务费",{"v":366200,"d":"366,200.00"},{"$nulls":4},{"v":366200,"d":"366,200.00"}]
["其他运转类","530000251100003346995","体科所科研测试专项资金","云南省体育科学研究所","2060301","机构运行","30299","其他商品和服务支出",{"v":10000,"d":"10,000.00"},{"$nulls":4},{"v":10000,"d":"10,000.00"}]
[null,null,"体科所体彩公益金专项经费",{"$nulls":5},{"v":26131455.58,"d":"26,131,455.58"},null,null,{"v":25690400,"d":"25,690,400.00"},null,null,{"v":441055.58,"d":"441,055.58"}]
["事业发展类","530000221100000196234","体科所体彩公益金专项经费","云南省体育科学研究所","2296003","用于体育事业的彩票公益金支出","30202","印刷费",{"v":350010,"d":"350,010.00"},null,null,{"v":230000,"d":"230,000.00"},null,null,{"v":120010,"d":"120,010.00"}]
["事业发展类","530000221100000196234","体科所体彩公益金专项经费","云南省体育科学研究所","2296003","用于体育事业的彩票公益金支出","30207","邮电费",{"v":70000,"d":"70,000.00"},null,null,{"v":70000,"d":"70,000.00"}]
["事业发展类","530000221100000196234","体科所体彩公益金专项经费","云南省体育科学研究所","2296003","用于体育事业的彩票公益金支出","30211","差旅费",{"v":1090171,"d":"1,090,171.00"},null,null,{"v":970000,"d":"970,000.00"},null,null,{"v":120171,"d":"120,171.00"}]
["事业发展类","530000221100000196234","体科所体彩公益金专项经费","云南省体育科学研究所","2296003","用于体育事业的彩票公益金支出","30213","维修（护）费",{"v":150000,"d":"150,000.00"},null,null,{"v":150000,"d":"150,000.00"}]
["事业发展类","530000221100000196234","体科所体彩公益金专项经费","云南省体育科学研究所","2296003","用于体育事业的彩票公益金支出","30214","租赁费",{"v":90000,"d":"90,000.00"},null,null,{"v":90000,"d":"90,000.00"}]
["事业发展类","530000221100000196234","体科所体彩公益金专项经费","云南省体育科学研究所","2296003","用于体育事业的彩票公益金支出","30216","培训费",{"v":1170000,"d":"1,170,000.00"},null,null,{"v":1170000,"d":"1,170,000.00"}]
["事业发展类","530000221100000196234","体科所体彩公益金专项经费","云南省体育科学研究所","2296003","用于体育事业的彩票公益金支出","30218","专用材料费",{"v":995800,"d":"995,800.00"},null,null,{"v":990000,"d":"990,000.00"},null,null,{"v":5800,"d":"5,800.00"}]
["事业发展类","530000221100000196234","体科所体彩公益金专项经费","云南省体育科学研究所","2296003","用于体育事业的彩票公益金支出","30226","劳务费",{"v":685800,"d":"685,800.00"},null,null,{"v":540000,"d":"540,000.00"},null,null,{"v":145800,"d":"145,800.00"}]
["事业发展类","530000221100000196234","体科所体彩公益金专项经费","云南省体育科学研究所","2296003","用于体育事业的彩票公益金支出","30227","委托业务费",{"v":11729274.58,"d":"11,729,274.58"},null,null,{"v":11680000,"d":"11,680,000.00"},null,null,{"v":49274.58,"d":"49,274.58"}]
["事业发展类","530000221100000196234","体科所体彩公益金专项经费","云南省体育科学研究所","2296003","用于体育事业的彩票公益金支出","30239","其他交通费用",{"v":30000,"d":"30,000.00"},null,null,{"v":30000,"d":"30,000.00"}]
["事业发展类","530000221100000196234","体科所体彩公益金专项经费","云南省体育科学研究所","2296003","用于体育事业的彩票公益金支出","31003","专用设备购置",{"v":7419900,"d":"7,419,900.00"},null,null,{"v":7419900,"d":"7,419,900.00"}]
["事业发展类","530000221100000196234","体科所体彩公益金专项经费","云南省体育科学研究所","2296003","用于体育事业的彩票公益金支出","31007","信息网络及软件购置更新",{"v":2350500,"d":"2,350,500.00"},null,null,{"v":2350500,"d":"2,350,500.00"}]
[null,null,"政务信息化运维服务项目补助资金",{"$nulls":5},{"v":1378900,"d":"1,378,900.00"},{"v":1378900,"d":"1,378,900.00"},{"v":1378900,"d":"1,378,900.00"}]
["事业发展类","530000261100005158538","政务信息化运维服务项目补助资金","云南省体育科学研究所","2060301","机构运行","30213","维修（护）费",{"v":439800,"d":"439,800.00"},{"v":439800,"d":"439,800.00"},{"v":439800,"d":"439,800.00"}]
["事业发展类","530000261100005158538","政务信息化运维服务项目补助资金","云南省体育科学研究所","2060301","机构运行","30214","租赁费",{"v":189500,"d":"189,500.00"},{"v":189500,"d":"189,500.00"},{"v":189500,"d":"189,500.00"}]
["事业发展类","530000261100005158538","政务信息化运维服务项目补助资金","云南省体育科学研究所","2060301","机构运行","30227","委托业务费",{"v":749600,"d":"749,600.00"},{"v":749600,"d":"749,600.00"},{"v":749600,"d":"749,600.00"}]
["合  计",{"$nulls":7},{"v":29532537.48,"d":"29,532,537.48"},{"v":2261700,"d":"2,261,700.00"},{"v":2261700,"d":"2,261,700.00"},{"v":25690400,"d":"25,690,400.00"},null,{"v":400000,"d":"400,000.00"},{"v":480437.48,"d":"480,437.48"},null,null,{"v":700000,"d":"700,000.00"},null,null,{"v":700000,"d":"700,000.00"}]

{"sheet":"单位项目支出绩效目标表05-2","index":8,"n_rows":68,"n_cols":10,"rows_kept":68,"merged":[[1,0,1,9],[2,0,2,7],[6,0,10,0],[6,1,10,1],[11,0,46,0],[11,1,46,1],[47,0,51,0],[47,1,51,1],[52,0,55,0],[52,1,55,1],[56,0,62,0],[56,1,62,1],[63,0,67,0],[63,1,67,1]]}
[{"$nulls":9},"预算05-2表"]
["2026年单位项目支出绩效目标表"]
[{"$f":"\"单位名称：\"&\"云南省体育科学研究所\"","v":"单位名称：云南省体育科学研究所"}]
["单位名称、项目名称","项目年度绩效目标","一级指标","二级指标","三级指标","指标性质","指标值","度量单位","指标属性","指标内容"]
[1,2,3,4,5,6,7,8,9,10]
["云南省体育科学研究所"]
["体科所科研测试专项资金","一、竞技体育：进一步做好备战亚运会的科技攻关与科技服务工作，推动“训科一体化”的进程和深入项目研究；进一步深入探索世居高原运动员选材指标体系及操作规范的建立；逐步完善呈贡科研中心实验室建设。完善云南省反兴奋剂长效治理体系，确保运动员干干净净训练和参赛。\n二、群众体育：贯彻《云南省全民健身条例》精神，不断完善国民体质监测与运动促进健康体系；推动科学健身指导下沉基层，开展形式多样的科学健身活动，广泛普及科学健身、体医融合、体重管理、科学运动知识；完善全民健身数据平台，赋能全民健身发展；树立国家体育锻炼标准达标测验工作示范，举办首届邀请赛推广普及锻炼标准。坚持科学、严谨、规范原则，高质量组织开展云南省全民健身活动状况调查和云南省第六次国民体质监测工作。\n三、数字体育：依托云南数字体育项目建设，持续完善“一中心两平台”的建设，围绕青少年体育、群众体育、竞技体育、体育产业四大核心业务的工作需求，以先进的信息技术为手段，推动\"五个数字化\"的整体工作框架，实现高效智慧办公、全民健身业务数字化管理、青少年体育工作信息化支撑和数字化体育科研，助力高原体育特色强省目标的实现。","产出指标","数量指标","完成科技成果转化项目个数",">=","20","项","定量指标","反映完成科技成果转化项目个数。"]
["体科所科研测试专项资金","一、竞技体育：进一步做好备战亚运会的科技攻关与科技服务工作，推动“训科一体化”的进程和深入项目研究；进一步深入探索世居高原运动员选材指标体系及操作规范的建立；逐步完善呈贡科研中心实验室建设。完善云南省反兴奋剂长效治理体系，确保运动员干干净净训练和参赛。\n二、群众体育：贯彻《云南省全民健身条例》精神,不断完善国民体质监测与运动促进健康体系；推动科学健身指导下沉基层，开展形式多样的科学健身活动，广泛普及科学健身、体医融合、体重管理、科学运动知识；完善全民健身数据平台，赋能全民健身发展；树立国家体育锻炼标准达标测验工作示范，举办首届邀请赛推广普及锻炼标准。坚持科学、严谨、规范原则，高质量组织开展云南省全民健身活动状况调查和云南省第六次国民体质监测工作。\n三、数字体育：依托云南数字体育项目建设，持续完善“一中心两平台”的建设，围绕青少年体育、群众体育、竞技体育、体育产业四大核心业务的工作需求，以先进的信息技术为手段，推动\"五个数字化\"的整体工作框架，实现高效智慧办公、全民健身业务数字化管理、青少年体育工作信息化支撑和数字化体育科研，助力高原体育特色强省目标的实现。","产出指标","质量指标","科技成果转化项目审核备案通过率",">=","95","%","定量指标","科技成果转化项目在省科技厅的审核备案通过率。"]
["体科所科研测试专项资金","一、竞技体育：进一步做好备战亚运会的科技攻关与科技服务工作，推动“训科一体化”的进程和深入项目研究；进一步深入探索世居高原运动员选材指标体系及操作规范的建立；逐步完善呈贡科研中心实验室建设。完善云南省反兴奋剂长效治理体系，确保运动员干干净净训练和参赛。\n二、群众体育：贯彻《云南省全民健身条例》精神,不断完善国民体质监测与运动促进健康体系；推动科学健身指导下沉基层，开展形式多样的科学健身活动，广泛普及科学健身、体医融合、体重管理、科学运动知识；完善全民健身数据平台，赋能全民健身发展；树立国家体育锻炼标准达标测验工作示范，举办首届邀请赛推广普及锻炼标准。坚持科学、严谨、规范原则，高质量组织开展云南省全民健身活动状况调查和云南省第六次国民体质监测工作。\n三、数字体育：依托云南数字体育项目建设，持续完善“一中心两平台”的建设，围绕青少年体育、群众体育、竞技体育、体育产业四大核心业务的工作需求，以先进的信息技术为手段，推动\"五个数字化\"的整体工作框架，实现高效智慧办公、全民健身业务数字化管理、青少年体育工作信息化支撑和数字化体育科研，助力高原体育特色强省目标的实现。","产出指标","时效指标","科技成果转化完成时限","=","2026年12月",null,"定性指标","项目完成时限。"]
["体科所科研测试专项资金","一、竞技体育：进一步做好备战亚运会的科技攻关与科技服务工作，推动“训科一体化”的进程和深入项目研究；进一步深入探索世居高原运动员选材指标体系及操作规范的建立；逐步完善呈贡科研中心实验室建设。完善云南省反兴奋剂长效治理体系，确保运动员干干净净训练和参赛。\n二、群众体育：贯彻《云南省全民健身条例》精神,不断完善国民体质监测与运动促进健康体系；推动科学健身指导下沉基层，开展形式多样的科学健身活动，广泛普及科学健身、体医融合、体重管理、科学运动知识；完善全民健身数据平台，赋能全民健身发展；树立国家体育锻炼标准达标测验工作示范，举办首届邀请赛推广普及锻炼标准。坚持科学、严谨、规范原则，高质量组织开展云南省全民健身活动状况调查和云南省第六次国民体质监测工作。\n三、数字体育：依托云南数字体育项目建设，持续完善“一中心两平台”的建设，围绕青少年体育、群众体育、竞技体育、体育产业四大核心业务的工作需求，以先进的信息技术为手段，推动\"五个数字化\"的整体工作框架，实现高效智慧办公、全民健身业务数字化管理、青少年体育工作信息化支撑和数字化体育科研，助力高原体育特色强省目标的实现。","效益指标","可持续影响","科研成果产出可持续的期限",">=","12","月","定量指标","科研成果产出可持续的期限。"]
["体科所科研测试专项资金","一、竞技体育：进一步做好备战亚运会的科技攻关与科技服务工作，推动“训科一体化”的进程和深入项目研究；进一步深入探索世居高原运动员选材指标体系及操作规范的建立；逐步完善呈贡科研中心实验室建设。完善云南省反兴奋剂长效治理体系，确保运动员干干净净训练和参赛。\n二、群众体育：贯彻《云南省全民健身条例》精神,不断完善国民体质监测与运动促进健康体系；推动科学健身指导下沉基层，开展形式多样的科学健身活动，广泛普及科学健身、体医融合、体重管理、科学运动知识；完善全民健身数据平台，赋能全民健身发展；树立国家体育锻炼标准达标测验工作示范，举办首届邀请赛推广普及锻炼标准。坚持科学、严谨、规范原则，高质量组织开展云南省全民健身活动状况调查和云南省第六次国民体质监测工作。\n三、数字体育：依托云南数字体育项目建设，持续完善“一中心两平台”的建设，围绕青少年体育、群众体育、竞技体育、体育产业四大核心业务的工作需求，以先进的信息技术为手段，推动\"五个数字化\"的整体工作框架，实现高效智慧办公、全民健身业务数字化管理、青少年体育工作信息化支撑和数字化体育科研，助力高原体育特色强省目标的实现。","满意度指标","服务对象满意度","各运动队及群众满意度",">=","85","%","定量指标","反映部门（单位）人员对公用经费保障的满意程度。"]
["体科所体彩公益金专项经费","一、竞技体育：进一步做好备战亚运会的科技攻关与科技服务工作，推动“训科一体化”的进程和深入项目研究；进一步深入探索世居高原运动员选材指标体系及操作规范的建立；逐步完善呈贡科研中心实验室建设。完善云南省反兴奋剂长效治理体系，确保运动员干干净净训练和参赛。\n二、群众体育：贯彻《云南省全民健身条例》精神,不断完善国民体质监测与运动促进健康体系；推动科学健身指导下沉基层，开展形式多样的科学健身活动，广泛普及科学健身、体医融合、体重管理、科学运动知识；完善全民健身数据平台，赋能全民健身发展；树立国家体育锻炼标准达标测验工作示范，举办首届邀请赛推广普及锻炼标准。坚持科学、严谨、规范原则，高质量组织开展云南省全民健身活动状况调查和云南省第六次国民体质监测工作。\n三、数字体育：依托云南数字体育项目建设，持续完善“一中心两平台”的建设，围绕青少年体育、群众体育、竞技体育、体育产业四大核心业务的工作需求，以先进的信息技术为手段，推动“五个数字化”的整体工作框架，实现高效智慧办公、全民健身业务数字化管理、青少年体育工作信息化支撑和数字化体育科研，助力高原体育特色强省目标的实现。","产出指标","数量指标","委托检查和检测反兴奋剂样本例数",">=","310","例","定量指标","委托检查和检测反兴奋剂样本例数。"]
["体科所体彩公益金专项经费","一、竞技体育：进一步做好备战亚运会的科技攻关与科技服务工作，推动“训科一体化”的进程和深入项目研究；进一步深入探索世居高原运动员选材指标体系及操作规范的建立；逐步完善呈贡科研中心实验室建设。完善云南省反兴奋剂长效治理体系，确保运动员干干净净训练和参赛。\n二、群众体育：贯彻《云南省全民健身条例》精神,不断完善国民体质监测与运动促进健康体系；推动科学健身指导下沉基层，开展形式多样的科学健身活动，广泛普及科学健身、体医融合、体重管理、科学运动知识；完善全民健身数据平台，赋能全民健身发展；树立国家体育锻炼标准达标测验工作示范，举办首届邀请赛推广普及锻炼标准。坚持科学、严谨、规范原则，高质量组织开展云南省全民健身活动状况调查和云南省第六次国民体质监测工作。\n三、数字体育：依托云南数字体育项目建设，持续完善“一中心两平台”的建设，围绕青少年体育、群众体育、竞技体育、体育产业四大核心业务的工作需求，以先进的信息技术为手段，推动\"五个数字化\"的整体工作框架，实现高效智慧办公、全民健身业务数字化管理、青少年体育工作信息化支撑和数字化体育科研，助力高原体育特色强省目标的实现。","产出指标","数量指标","主办业务工作培训班次数",">=","6","次","定量指标","完成主办反兴奋剂工作相关培训班2次、科学化训练培训班1次、科学健身指导培训班3次。"]
["体科所体彩公益金专项经费","一、竞技体育：进一步做好备战亚运会的科技攻关与科技服务工作，推动“训科一体化”的进程和深入项目研究；进一步深入探索世居高原运动员选材指标体系及操作规范的建立；逐步完善呈贡科研中心实验室建设。完善云南省反兴奋剂长效治理体系，确保运动员干干净净训练和参赛。\n二、群众体育：贯彻《云南省全民健身条例》精神,不断完善国民体质监测与运动促进健康体系；推动科学健身指导下沉基层，开展形式多样的科学健身活动，广泛普及科学健身、体医融合、体重管理、科学运动知识；完善全民健身数据平台，赋能全民健身发展；树立国家体育锻炼标准达标测验工作示范，举办首届邀请赛推广普及锻炼标准。坚持科学、严谨、规范原则，高质量组织开展云南省全民健身活动状况调查和云南省第六次国民体质监测工作。\n三、数字体育：依托云南数字体育项目建设，持续完善“一中心两平台”的建设，围绕青少年体育、群众体育、竞技体育、体育产业四大核心业务的工作需求，以先进的信息技术为手段，推动\"五个数字化\"的整体工作框架，实现高效智慧办公、全民健身业务数字化管理、青少年体育工作信息化支撑和数字化体育科研，助力高原体育特色强省目标的实现。","产出指标","数量指标","参加业务工作培训班人数",">=","330","人","定量指标","完成主办反兴奋剂工作相关培训班参会人数≥100人；完成科学化训练培训班参会人次≥50人；完成主办科学健身指导培训班参会人数≥180人。"]
["体科所体彩公益金专项经费","一、竞技体育：进一步做好备战亚运会的科技攻关与科技服务工作，推动“训科一体化”的进程和深入项目研究；进一步深入探索世居高原运动员选材指标体系及操作规范的建立；逐步完善呈贡科研中心实验室建设。完善云南省反兴奋剂长效治理体系，确保运动员干干净净训练和参赛。\n二、群众体育：贯彻《云南省全民健身条例》精神,不断完善国民体质监测与运动促进健康体系；推动科学健身指导下沉基层，开展形式多样的科学健身活动，广泛普及科学健身、体医融合、体重管理、科学运动知识；完善全民健身数据平台，赋能全民健身发展；树立国家体育锻炼标准达标测验工作示范，举办首届邀请赛推广普及锻炼标准。坚持科学、严谨、规范原则，高质量组织开展云南省全民健身活动状况调查和云南省第六次国民体质监测工作。\n三、数字体育：依托云南数字体育项目建设，持续完善“一中心两平台”的建设，围绕青少年体育、群众体育、竞技体育、体育产业四大核心业务的工作需求，以先进的信息技术为手段，推动\"五个数字化\"的整体工作框架，实现高效智慧办公、全民健身业务数字化管理、青少年体育工作信息化支撑和数字化体育科研，助力高原体育特色强省目标的实现。","产出指标","数量指标","完成食品药品营养品管控检测例数",">=","40","例","定量指标","“三品”风险防控监督：对各训练单位的食品、药品、保健食品和肉食品等进行不定期抽检，上、下半年各20例。"]
["体科所体彩公益金专项经费","一、竞技体育：进一步做好备战亚运会的科技攻关与科技服务工作，推动“训科一体化”的进程和深入项目研究；进一步深入探索世居高原运动员选材指标体系及操作规范的建立；逐步完善呈贡科研中心实验室建设。完善云南省反兴奋剂长效治理体系，确保运动员干干净净训练和参赛。\n二、群众体育：贯彻《云南省全民健身条例》精神,不断完善国民体质监测与运动促进健康体系；推动科学健身指导下沉基层，开展形式多样的科学健身活动，广泛普及科学健身、体医融合、体重管理、科学运动知识；完善全民健身数据平台，赋能全民健身发展；树立国家体育锻炼标准达标测验工作示范，举办首届邀请赛推广普及锻炼标准。坚持科学、严谨、规范原则，高质量组织开展云南省全民健身活动状况调查和云南省第六次国民体质监测工作。\n三、数字体育：依托云南数字体育项目建设，持续完善“一中心两平台”的建设，围绕青少年体育、群众体育、竞技体育、体育产业四大核心业务的工作需求，以先进的信息技术为手段，推动\"五个数字化\"的整体工作框架，实现高效智慧办公、全民健身业务数字化管理、青少年体育工作信息化支撑和数字化体育科研，助力高原体育特色强省目标的实现。","产出指标","数量指标","为运动队提供科技服务保障人次",">=","2300","人次","定量指标","完成全省各省级运动队科技服务保障。"]
["体科所体彩公益金专项经费","一、竞技体育：进一步做好备战亚运会的科技攻关与科技服务工作，推动“训科一体化”的进程和深入项目研究；进一步深入探索世居高原运动员选材指标体系及操作规范的建立；逐步完善呈贡科研中心实验室建设。完善云南省反兴奋剂长效治理体系，确保运动员干干净净训练和参赛。\n二、群众体育：贯彻《云南省全民健身条例》精神,不断完善国民体质监测与运动促进健康体系；推动科学健身指导下沉基层，开展形式多样的科学健身活动，广泛普及科学健身、体医融合、体重管理、科学运动知识；完善全民健身数据平台，赋能全民健身发展；树立国家体育锻炼标准达标测验工作示范，举办首届邀请赛推广普及锻炼标准。坚持科学、严谨、规范原则，高质量组织开展云南省全民健身活动状况调查和云南省第六次国民体质监测工作。\n三、数字体育：依托云南数字体育项目建设，持续完善“一中心两平台”的建设，围绕青少年体育、群众体育、竞技体育、体育产业四大核心业务的工作需求，以先进的信息技术为手段，推动\"五个数字化\"的整体工作框架，实现高效智慧办公、全民健身业务数字化管理、青少年体育工作信息化支撑和数字化体育科研，助力高原体育特色强省目标的实现。","产出指标","数量指标","购置科研设备数量","=","8","套","定量指标","采购双能X线骨密度体成分测试仪、肌肉状态测试分析仪、上肢无氧功、近红外光谱脑功能成像、测速仪、全自动生化分析仪及选材测试设备。"]
["体科所体彩公益金专项经费","一、竞技体育：进一步做好备战亚运会的科技攻关与科技服务工作，推动“训科一体化”的进程和深入项目研究；进一步深入探索世居高原运动员选材指标体系及操作规范的建立；逐步完善呈贡科研中心实验室建设。完善云南省反兴奋剂长效治理体系，确保运动员干干净净训练和参赛。\n二、群众体育：贯彻《云南省全民健身条例》精神,不断完善国民体质监测与运动促进健康体系；推动科学健身指导下沉基层，开展形式多样的科学健身活动，广泛普及科学健身、体医融合、体重管理、科学运动知识；完善全民健身数据平台，赋能全民健身发展；树立国家体育锻炼标准达标测验工作示范，举办首届邀请赛推广普及锻炼标准。坚持科学、严谨、规范原则，高质量组织开展云南省全民健身活动状况调查和云南省第六次国民体质监测工作。\n三、数字体育：依托云南数字体育项目建设，持续完善“一中心两平台”的建设，围绕青少年体育、群众体育、竞技体育、体育产业四大核心业务的工作需求，以先进的信息技术为手段，推动\"五个数字化\"的整体工作框架，实现高效智慧办公、全民健身业务数字化管理、青少年体育工作信息化支撑和数字化体育科研，助力高原体育特色强省目标的实现。","产出指标","数量指标","国民体质监测样本量",">=","40000","例","定量指标","国民体质监测样本量。"]
["体科所体彩公益金专项经费","一、竞技体育：进一步做好备战亚运会的科技攻关与科技服务工作，推动“训科一体化”的进程和深入项目研究；进一步深入探索世居高原运动员选材指标体系及操作规范的建立；逐步完善呈贡科研中心实验室建设。完善云南省反兴奋剂长效治理体系，确保运动员干干净净训练和参赛。\n二、群众体育：贯彻《云南省全民健身条例》精神,不断完善国民体质监测与运动促进健康体系；推动科学健身指导下沉基层，开展形式多样的科学健身活动，广泛普及科学健身、体医融合、体重管理、科学运动知识；完善全民健身数据平台，赋能全民健身发展；树立国家体育锻炼标准达标测验工作示范，举办首届邀请赛推广普及锻炼标准。坚持科学、严谨、规范原则，高质量组织开展云南省全民健身活动状况调查和云南省第六次国民体质监测工作。\n三、数字体育：依托云南数字体育项目建设，持续完善“一中心两平台”的建设，围绕青少年体育、群众体育、竞技体育、体育产业四大核心业务的工作需求，以先进的信息技术为手段，推动\"五个数字化\"的整体工作框架，实现高效智慧办公、全民健身业务数字化管理、青少年体育工作信息化支撑和数字化体育科研，助力高原体育特色强省目标的实现。","产出指标","数量指标","健身科普活动及大讲堂参与人数",">=","200","人","定量指标","面向群众开展全民健身科普活动，活动参与人数不低于1000人次。"]
["体科所体彩公益金专项经费","一、竞技体育：进一步做好备战亚运会的科技攻关与科技服务工作，推动“训科一体化”的进程和深入项目研究；进一步深入探索世居高原运动员选材指标体系及操作规范的建立；逐步完善呈贡科研中心实验室建设。完善云南省反兴奋剂长效治理体系，确保运动员干干净净训练和参赛。\n二、群众体育：贯彻《云南省全民健身条例》精神,不断完善国民体质监测与运动促进健康体系；推动科学健身指导下沉基层，开展形式多样的科学健身活动，广泛普及科学健身、体医融合、体重管理、科学运动知识；完善全民健身数据平台，赋能全民健身发展；树立国家体育锻炼标准达标测验工作示范，举办首届邀请赛推广普及锻炼标准。坚持科学、严谨、规范原则，高质量组织开展云南省全民健身活动状况调查和云南省第六次国民体质监测工作。\n三、数字体育：依托云南数字体育项目建设，持续完善“一中心两平台”的建设，围绕青少年体育、群众体育、竞技体育、体育产业四大核心业务的工作需求，以先进的信息技术为手段，推动\"五个数字化\"的整体工作框架，实现高效智慧办公、全民健身业务数字化管理、青少年体育工作信息化支撑和数字化体育科研，助力高原体育特色强省目标的实现。","产出指标","数量指标","进行反兴奋剂工作调研监督次数",">=","2","次","定量指标","完成对云南省各级、各类运动队管理单位实施云南省反兴奋剂工作调研、监督和评估。"]
["体科所体彩公益金专项经费","一、竞技体育：进一步做好备战亚运会的科技攻关与科技服务工作，推动“训科一体化”的进程和深入项目研究；进一步深入探索世居高原运动员选材指标体系及操作规范的建立；逐步完善呈贡科研中心实验室建设。完善云南省反兴奋剂长效治理体系，确保运动员干干净净训练和参赛。\n二、群众体育：贯彻《云南省全民健身条例》精神,不断完善国民体质监测与运动促进健康体系；推动科学健身指导下沉基层，开展形式多样的科学健身活动，广泛普及科学健身、体医融合、体重管理、科学运动知识；完善全民健身数据平台，赋能全民健身发展；树立国家体育锻炼标准达标测验工作示范，举办首届邀请赛推广普及锻炼标准。坚持科学、严谨、规范原则，高质量组织开展云南省全民健身活动状况调查和云南省第六次国民体质监测工作。\n三、数字体育：依托云南数字体育项目建设，持续完善“一中心两平台”的建设，围绕青少年体育、群众体育、竞技体育、体育产业四大核心业务的工作需求，以先进的信息技术为手段，推动\"五个数字化\"的整体工作框架，实现高效智慧办公、全民健身业务数字化管理、青少年体育工作信息化支撑和数字化体育科研，助力高原体育特色强省目标的实现。","产出指标","数量指标","反兴奋剂宣传教育讲座举办次数",">=","8","次","定量指标","对运动员及相关人员开展反兴奋剂宣传、教育及培训工作，全年不少于8次。"]
["体科所体彩公益金专项经费","一、竞技体育：进一步做好备战亚运会的科技攻关与科技服务工作，推动“训科一体化”的进程和深入项目研究；进一步深入探索世居高原运动员选材指标体系及操作规范的建立；逐步完善呈贡科研中心实验室建设。完善云南省反兴奋剂长效治理体系，确保运动员干干净净训练和参赛。\n二、群众体育：贯彻《云南省全民健身条例》精神,不断完善国民体质监测与运动促进健康体系；推动科学健身指导下沉基层，开展形式多样的科学健身活动，广泛普及科学健身、体医融合、体重管理、科学运动知识；完善全民健身数据平台，赋能全民健身发展；树立国家体育锻炼标准达标测验工作示范，举办首届邀请赛推广普及锻炼标准。坚持科学、严谨、规范原则，高质量组织开展云南省全民健身活动状况调查和云南省第六次国民体质监测工作。\n三、数字体育：依托云南数字体育项目建设，持续完善“一中心两平台”的建设，围绕青少年体育、群众体育、竞技体育、体育产业四大核心业务的工作需求，以先进的信息技术为手段，推动\"五个数字化\"的整体工作框架，实现高效智慧办公、全民健身业务数字化管理、青少年体育工作信息化支撑和数字化体育科研，助力高原体育特色强省目标的实现。","产出指标","数量指标","体育事业信息化保障内容","=","4","项","定量指标","1、网络保障；2、业务系统运行正常；3、信息化运维；4、数字体育信息服务。"]
["体科所体彩公益金专项经费","一、竞技体育：进一步做好备战亚运会的科技攻关与科技服务工作，推动“训科一体化”的进程和深入项目研究；进一步深入探索世居高原运动员选材指标体系及操作规范的建立；逐步完善呈贡科研中心实验室建设。完善云南省反兴奋剂长效治理体系，确保运动员干干净净训练和参赛。\n二、群众体育：贯彻《云南省全民健身条例》精神,不断完善国民体质监测与运动促进健康体系；推动科学健身指导下沉基层，开展形式多样的科学健身活动，广泛普及科学健身、体医融合、体重管理、科学运动知识；完善全民健身数据平台，赋能全民健身发展；树立国家体育锻炼标准达标测验工作示范，举办首届邀请赛推广普及锻炼标准。坚持科学、严谨、规范原则，高质量组织开展云南省全民健身活动状况调查和云南省第六次国民体质监测工作。\n三、数字体育：依托云南数字体育项目建设，持续完善“一中心两平台”的建设，围绕青少年体育、群众体育、竞技体育、体育产业四大核心业务的工作需求，以先进的信息技术为手段，推动\"五个数字化\"的整体工作框架，实现高效智慧办公、全民健身业务数字化管理、青少年体育工作信息化支撑和数字化体育科研，助力高原体育特色强省目标的实现。","产出指标","数量指标","反兴奋剂宣传教育讲座参加人次",">=","2000","人次","定量指标","反兴奋剂宣传教育讲座参加人次不少于2000人次。"]
["体科所体彩公益金专项经费","一、竞技体育：进一步做好备战亚运会的科技攻关与科技服务工作，推动“训科一体化”的进程和深入项目研究；进一步深入探索世居高原运动员选材指标体系及操作规范的建立；逐步完善呈贡科研中心实验室建设。完善云南省反兴奋剂长效治理体系，确保运动员干干净净训练和参赛。\n二、群众体育：贯彻《云南省全民健身条例》精神,不断完善国民体质监测与运动促进健康体系；推动科学健身指导下沉基层，开展形式多样的科学健身活动，广泛普及科学健身、体医融合、体重管理、科学运动知识；完善全民健身数据平台，赋能全民健身发展；树立国家体育锻炼标准达标测验工作示范，举办首届邀请赛推广普及锻炼标准。坚持科学、严谨、规范原则，高质量组织开展云南省全民健身活动状况调查和云南省第六次国民体质监测工作。\n三、数字体育：依托云南数字体育项目建设，持续完善“一中心两平台”的建设，围绕青少年体育、群众体育、竞技体育、体育产业四大核心业务的工作需求，以先进的信息技术为手段，推动\"五个数字化\"的整体工作框架，实现高效智慧办公、全民健身业务数字化管理、青少年体育工作信息化支撑和数字化体育科研，助力高原体育特色强省目标的实现。","产出指标","数量指标","青少年体育信息服务项数","=","3","项","定量指标","1、青少年运动员注册工作顺利开展；2、青少年体育赛事信息服务顺利进行；3、青少年运动员教育模块建设完成。"]
["体科所体彩公益金专项经费","一、竞技体育：进一步做好备战亚运会的科技攻关与科技服务工作，推动“训科一体化”的进程和深入项目研究；进一步深入探索世居高原运动员选材指标体系及操作规范的建立；逐步完善呈贡科研中心实验室建设。完善云南省反兴奋剂长效治理体系，确保运动员干干净净训练和参赛。\n二、群众体育：贯彻《云南省全民健身条例》精神,不断完善国民体质监测与运动促进健康体系；推动科学健身指导下沉基层，开展形式多样的科学健身活动，广泛普及科学健身、体医融合、体重管理、科学运动知识；完善全民健身数据平台，赋能全民健身发展；树立国家体育锻炼标准达标测验工作示范，举办首届邀请赛推广普及锻炼标准。坚持科学、严谨、规范原则，高质量组织开展云南省全民健身活动状况调查和云南省第六次国民体质监测工作。\n三、数字体育：依托云南数字体育项目建设，持续完善“一中心两平台”的建设，围绕青少年体育、群众体育、竞技体育、体育产业四大核心业务的工作需求，以先进的信息技术为手段，推动\"五个数字化\"的整体工作框架，实现高效智慧办公、全民健身业务数字化管理、青少年体育工作信息化支撑和数字化体育科研，助力高原体育特色强省目标的实现。","产出指标","数量指标","完成网络信息安全工作内容项数","=","3","项","定量指标","1、完成等保测评；2、完成密保测评；3完成态势感知系统建设。"]
["体科所体彩公益金专项经费","一、竞技体育：进一步做好备战亚运会的科技攻关与科技服务工作，推动“训科一体化”的进程和深入项目研究；进一步深入探索世居高原运动员选材指标体系及操作规范的建立；逐步完善呈贡科研中心实验室建设。完善云南省反兴奋剂长效治理体系，确保运动员干干净净训练和参赛。\n二、群众体育：贯彻《云南省全民健身条例》精神,不断完善国民体质监测与运动促进健康体系；推动科学健身指导下沉基层，开展形式多样的科学健身活动，广泛普及科学健身、体医融合、体重管理、科学运动知识；完善全民健身数据平台，赋能全民健身发展；树立国家体育锻炼标准达标测验工作示范，举办首届邀请赛推广普及锻炼标准。坚持科学、严谨、规范原则，高质量组织开展云南省全民健身活动状况调查和云南省第六次国民体质监测工作。\n三、数字体育：依托云南数字体育项目建设，持续完善“一中心两平台”的建设，围绕青少年体育、群众体育、竞技体育、体育产业四大核心业务的工作需求，以先进的信息技术为手段，推动\"五个数字化\"的整体工作框架，实现高效智慧办公、全民健身业务数字化管理、青少年体育工作信息化支撑和数字化体育科研，助力高原体育特色强省目标的实现。","产出指标","数量指标","健身科普活动及大讲堂举办次数",">=","5","次","定量指标","全民健身科普活动举办不少于5次，大讲堂不少于8次。"]
["体科所体彩公益金专项经费","一、竞技体育：进一步做好备战亚运会的科技攻关与科技服务工作，推动“训科一体化”的进程和深入项目研究；进一步深入探索世居高原运动员选材指标体系及操作规范的建立；逐步完善呈贡科研中心实验室建设。完善云南省反兴奋剂长效治理体系，确保运动员干干净净训练和参赛。\n二、群众体育：贯彻《云南省全民健身条例》精神,不断完善国民体质监测与运动促进健康体系；推动科学健身指导下沉基层，开展形式多样的科学健身活动，广泛普及科学健身、体医融合、体重管理、科学运动知识；完善全民健身数据平台，赋能全民健身发展；树立国家体育锻炼标准达标测验工作示范，举办首届邀请赛推广普及锻炼标准。坚持科学、严谨、规范原则，高质量组织开展云南省全民健身活动状况调查和云南省第六次国民体质监测工作。\n三、数字体育：依托云南数字体育项目建设，持续完善“一中心两平台”的建设，围绕青少年体育、群众体育、竞技体育、体育产业四大核心业务的工作需求，以先进的信息技术为手段，推动\"五个数字化\"的整体工作框架，实现高效智慧办公、全民健身业务数字化管理、青少年体育工作信息化支撑和数字化体育科研，助力高原体育特色强省目标的实现。","产出指标","数量指标","国民体质监测及状况调查人次",">=","40000","人次","定量指标","参加国民体质监测活动人次。"]
["体科所体彩公益金专项经费","一、竞技体育：进一步做好备战亚运会的科技攻关与科技服务工作，推动“训科一体化”的进程和深入项目研究；进一步深入探索世居高原运动员选材指标体系及操作规范的建立；逐步完善呈贡科研中心实验室建设。完善云南省反兴奋剂长效治理体系，确保运动员干干净净训练和参赛。\n二、群众体育：贯彻《云南省全民健身条例》精神,不断完善国民体质监测与运动促进健康体系；推动科学健身指导下沉基层，开展形式多样的科学健身活动，广泛普及科学健身、体医融合、体重管理、科学运动知识；完善全民健身数据平台，赋能全民健身发展；树立国家体育锻炼标准达标测验工作示范，举办首届邀请赛推广普及锻炼标准。坚持科学、严谨、规范原则，高质量组织开展云南省全民健身活动状况调查和云南省第六次国民体质监测工作。\n三、数字体育：依托云南数字体育项目建设，持续完善“一中心两平台”的建设，围绕青少年体育、群众体育、竞技体育、体育产业四大核心业务的工作需求，以先进的信息技术为手段，推动\"五个数字化\"的整体工作框架，实现高效智慧办公、全民健身业务数字化管理、青少年体育工作信息化支撑和数字化体育科研，助力高原体育特色强省目标的实现。","产出指标","数量指标","推行国家体育锻炼标准人次",">=","10000","人次","定量指标","参加国家体育锻炼标准达标测验人次。"]
["体科所体彩公益金专项经费","一、竞技体育：进一步做好备战亚运会的科技攻关与科技服务工作，推动“训科一体化”的进程和深入项目研究；进一步深入探索世居高原运动员选材指标体系及操作规范的建立；逐步完善呈贡科研中心实验室建设。完善云南省反兴奋剂长效治理体系，确保运动员干干净净训练和参赛。\n二、群众体育：贯彻《云南省全民健身条例》精神,不断完善国民体质监测与运动促进健康体系；推动科学健身指导下沉基层，开展形式多样的科学健身活动，广泛普及科学健身、体医融合、体重管理、科学运动知识；完善全民健身数据平台，赋能全民健身发展；树立国家体育锻炼标准达标测验工作示范，举办首届邀请赛推广普及锻炼标准。坚持科学、严谨、规范原则，高质量组织开展云南省全民健身活动状况调查和云南省第六次国民体质监测工作。\n三、数字体育：依托云南数字体育项目建设，持续完善“一中心两平台”的建设，围绕青少年体育、群众体育、竞技体育、体育产业四大核心业务的工作需求，以先进的信息技术为手段，推动\"五个数字化\"的整体工作框架，实现高效智慧办公、全民健身业务数字化管理、青少年体育工作信息化支撑和数字化体育科研，助力高原体育特色强省目标的实现。","产出指标","数量指标","云南省体育局网站访问量",">=","50000","条","定量指标","云南省体育局网站访问量。"]
["体科所体彩公益金专项经费","一、竞技体育：进一步做好备战亚运会的科技攻关与科技服务工作，推动“训科一体化”的进程和深入项目研究；进一步深入探索世居高原运动员选材指标体系及操作规范的建立；逐步完善呈贡科研中心实验室建设。完善云南省反兴奋剂长效治理体系，确保运动员干干净净训练和参赛。\n二、群众体育：贯彻《云南省全民健身条例》精神,不断完善国民体质监测与运动促进健康体系；推动科学健身指导下沉基层，开展形式多样的科学健身活动，广泛普及科学健身、体医融合、体重管理、科学运动知识；完善全民健身数据平台，赋能全民健身发展；树立国家体育锻炼标准达标测验工作示范，举办首届邀请赛推广普及锻炼标准。坚持科学、严谨、规范原则，高质量组织开展云南省全民健身活动状况调查和云南省第六次国民体质监测工作。\n三、数字体育：依托云南数字体育项目建设，持续完善“一中心两平台”的建设，围绕青少年体育、群众体育、竞技体育、体育产业四大核心业务的工作需求，以先进的信息技术为手段，推动\"五个数字化\"的整体工作框架，实现高效智慧办公、全民健身业务数字化管理、青少年体育工作信息化支撑和数字化体育科研，助力高原体育特色强省目标的实现。","产出指标","数量指标","全民健身科普宣传惠及人数",">=","200","人","定量指标","全民健身科普宣传惠及人数。"]
["体科所体彩公益金专项经费","一、竞技体育：进一步做好备战亚运会的科技攻关与科技服务工作，推动“训科一体化”的进程和深入项目研究；进一步深入探索世居高原运动员选材指标体系及操作规范的建立；逐步完善呈贡科研中心实验室建设。完善云南省反兴奋剂长效治理体系，确保运动员干干净净训练和参赛。\n二、群众体育：贯彻《云南省全民健身条例》精神,不断完善国民体质监测与运动促进健康体系；推动科学健身指导下沉基层，开展形式多样的科学健身活动，广泛普及科学健身、体医融合、体重管理、科学运动知识；完善全民健身数据平台，赋能全民健身发展；树立国家体育锻炼标准达标测验工作示范，举办首届邀请赛推广普及锻炼标准。坚持科学、严谨、规范原则，高质量组织开展云南省全民健身活动状况调查和云南省第六次国民体质监测工作。\n三、数字体育：依托云南数字体育项目建设，持续完善“一中心两平台”的建设，围绕青少年体育、群众体育、竞技体育、体育产业四大核心业务的工作需求，以先进的信息技术为手段，推动\"五个数字化\"的整体工作框架，实现高效智慧办公、全民健身业务数字化管理、青少年体育工作信息化支撑和数字化体育科研，助力高原体育特色强省目标的实现。","产出指标","数量指标","使用设备运动员人次",">=","3000","人次","定量指标","使用设备运动员人次。"]
["体科所体彩公益金专项经费","一、竞技体育：进一步做好备战亚运会的科技攻关与科技服务工作，推动“训科一体化”的进程和深入项目研究；进一步深入探索世居高原运动员选材指标体系及操作规范的建立；逐步完善呈贡科研中心实验室建设。完善云南省反兴奋剂长效治理体系，确保运动员干干净净训练和参赛。\n二、群众体育：贯彻《云南省全民健身条例》精神,不断完善国民体质监测与运动促进健康体系；推动科学健身指导下沉基层，开展形式多样的科学健身活动，广泛普及科学健身、体医融合、体重管理、科学运动知识；完善全民健身数据平台，赋能全民健身发展；树立国家体育锻炼标准达标测验工作示范，举办首届邀请赛推广普及锻炼标准。坚持科学、严谨、规范原则，高质量组织开展云南省全民健身活动状况调查和云南省第六次国民体质监测工作。\n三、数字体育：依托云南数字体育项目建设，持续完善“一中心两平台”的建设，围绕青少年体育、群众体育、竞技体育、体育产业四大核心业务的工作需求，以先进的信息技术为手段，推动\"五个数字化\"的整体工作框架，实现高效智慧办公、全民健身业务数字化管理、青少年体育工作信息化支撑和数字化体育科研，助力高原体育特色强省目标的实现。","产出指标","质量指标","省级运动队兴奋剂违规且被禁赛","=","0","例","定量指标","兴奋剂违规例数。"]
["体科所体彩公益金专项经费","一、竞技体育：进一步做好备战亚运会的科技攻关与科技服务工作，推动“训科一体化”的进程和深入项目研究；进一步深入探索世居高原运动员选材指标体系及操作规范的建立；逐步完善呈贡科研中心实验室建设。完善云南省反兴奋剂长效治理体系，确保运动员干干净净训练和参赛。\n二、群众体育：贯彻《云南省全民健身条例》精神,不断完善国民体质监测与运动促进健康体系；推动科学健身指导下沉基层，开展形式多样的科学健身活动，广泛普及科学健身、体医融合、体重管理、科学运动知识；完善全民健身数据平台，赋能全民健身发展；树立国家体育锻炼标准达标测验工作示范，举办首届邀请赛推广普及锻炼标准。坚持科学、严谨、规范原则，高质量组织开展云南省全民健身活动状况调查和云南省第六次国民体质监测工作。\n三、数字体育：依托云南数字体育项目建设，持续完善“一中心两平台”的建设，围绕青少年体育、群众体育、竞技体育、体育产业四大核心业务的工作需求，以先进的信息技术为手段，推动\"五个数字化\"的整体工作框架，实现高效智慧办公、全民健身业务数字化管理、青少年体育工作信息化支撑和数字化体育科研，助力高原体育特色强省目标的实现。","产出指标","质量指标","系统开发及升级验收合格率","=","100","%","定量指标","竞技体育系统模块升级验收合格率。"]
["体科所体彩公益金专项经费","一、竞技体育：进一步做好备战亚运会的科技攻关与科技服务工作，推动“训科一体化”的进程和深入项目研究；进一步深入探索世居高原运动员选材指标体系及操作规范的建立；逐步完善呈贡科研中心实验室建设。完善云南省反兴奋剂长效治理体系，确保运动员干干净净训练和参赛。\n二、群众体育：贯彻《云南省全民健身条例》精神,不断完善国民体质监测与运动促进健康体系；推动科学健身指导下沉基层，开展形式多样的科学健身活动，广泛普及科学健身、体医融合、体重管理、科学运动知识；完善全民健身数据平台，赋能全民健身发展；树立国家体育锻炼标准达标测验工作示范，举办首届邀请赛推广普及锻炼标准。坚持科学、严谨、规范原则，高质量组织开展云南省全民健身活动状况调查和云南省第六次国民体质监测工作。\n三、数字体育：依托云南数字体育项目建设，持续完善“一中心两平台”的建设，围绕青少年体育、群众体育、竞技体育、体育产业四大核心业务的工作需求，以先进的信息技术为手段，推动\"五个数字化\"的整体工作框架，实现高效智慧办公、全民健身业务数字化管理、青少年体育工作信息化支撑和数字化体育科研，助力高原体育特色强省目标的实现。","产出指标","质量指标","科研设备验收合格率","=","100","%","定量指标","采购双能X线骨密度体成分测试仪、肌肉状态测试分析仪、上肢无氧功、近红外光谱脑功能成像、测速仪、全自动生化分析仪及选材测试设备验收合格率。"]
["体科所体彩公益金专项经费","一、竞技体育：进一步做好备战亚运会的科技攻关与科技服务工作，推动“训科一体化”的进程和深入项目研究；进一步深入探索世居高原运动员选材指标体系及操作规范的建立；逐步完善呈贡科研中心实验室建设。完善云南省反兴奋剂长效治理体系，确保运动员干干净净训练和参赛。\n二、群众体育：贯彻《云南省全民健身条例》精神,不断完善国民体质监测与运动促进健康体系；推动科学健身指导下沉基层，开展形式多样的科学健身活动，广泛普及科学健身、体医融合、体重管理、科学运动知识；完善全民健身数据平台，赋能全民健身发展；树立国家体育锻炼标准达标测验工作示范，举办首届邀请赛推广普及锻炼标准。坚持科学、严谨、规范原则，高质量组织开展云南省全民健身活动状况调查和云南省第六次国民体质监测工作。\n三、数字体育：依托云南数字体育项目建设，持续完善“一中心两平台”的建设，围绕青少年体育、群众体育、竞技体育、体育产业四大核心业务的工作需求，以先进的信息技术为手段，推动\"五个数字化\"的整体工作框架，实现高效智慧办公、全民健身业务数字化管理、青少年体育工作信息化支撑和数字化体育科研，助力高原体育特色强省目标的实现。","产出指标","质量指标","科技服务测试任务完成率","=","100","%","定量指标","科技服务测试任务完成率。"]
["体科所体彩公益金专项经费","一、竞技体育：进一步做好备战亚运会的科技攻关与科技服务工作，推动“训科一体化”的进程和深入项目研究；进一步深入探索世居高原运动员选材指标体系及操作规范的建立；逐步完善呈贡科研中心实验室建设。完善云南省反兴奋剂长效治理体系，确保运动员干干净净训练和参赛。\n二、群众体育：贯彻《云南省全民健身条例》精神,不断完善国民体质监测与运动促进健康体系；推动科学健身指导下沉基层，开展形式多样的科学健身活动，广泛普及科学健身、体医融合、体重管理、科学运动知识；完善全民健身数据平台，赋能全民健身发展；树立国家体育锻炼标准达标测验工作示范，举办首届邀请赛推广普及锻炼标准。坚持科学、严谨、规范原则，高质量组织开展云南省全民健身活动状况调查和云南省第六次国民体质监测工作。\n三、数字体育：依托云南数字体育项目建设，持续完善“一中心两平台”的建设，围绕青少年体育、群众体育、竞技体育、体育产业四大核心业务的工作需求，以先进的信息技术为手段，推动\"五个数字化\"的整体工作框架，实现高效智慧办公、全民健身业务数字化管理、青少年体育工作信息化支撑和数字化体育科研，助力高原体育特色强省目标的实现。","产出指标","质量指标","国家体育锻炼标准达标测验准确率",">=","90","%","定量指标","国家体育锻炼标准达标测验准确率。"]
["体科所体彩公益金专项经费","一、竞技体育：进一步做好备战亚运会的科技攻关与科技服务工作，推动“训科一体化”的进程和深入项目研究；进一步深入探索世居高原运动员选材指标体系及操作规范的建立；逐步完善呈贡科研中心实验室建设。完善云南省反兴奋剂长效治理体系，确保运动员干干净净训练和参赛。\n二、群众体育：贯彻《云南省全民健身条例》精神,不断完善国民体质监测与运动促进健康体系；推动科学健身指导下沉基层，开展形式多样的科学健身活动，广泛普及科学健身、体医融合、体重管理、科学运动知识；完善全民健身数据平台，赋能全民健身发展；树立国家体育锻炼标准达标测验工作示范，举办首届邀请赛推广普及锻炼标准。坚持科学、严谨、规范原则，高质量组织开展云南省全民健身活动状况调查和云南省第六次国民体质监测工作。\n三、数字体育：依托云南数字体育项目建设，持续完善“一中心两平台”的建设，围绕青少年体育、群众体育、竞技体育、体育产业四大核心业务的工作需求，以先进的信息技术为手段，推动\"五个数字化\"的整体工作框架，实现高效智慧办公、全民健身业务数字化管理、青少年体育工作信息化支撑和数字化体育科研，助力高原体育特色强省目标的实现。","产出指标","质量指标","对运动员反兴奋剂教育覆盖率","=","100","%","定量指标","省级专业运动员及参加十七届省运会运动员教育覆盖率。"]
["体科所体彩公益金专项经费","一、竞技体育：进一步做好备战亚运会的科技攻关与科技服务工作，推动“训科一体化”的进程和深入项目研究；进一步深入探索世居高原运动员选材指标体系及操作规范的建立；逐步完善呈贡科研中心实验室建设。完善云南省反兴奋剂长效治理体系，确保运动员干干净净训练和参赛。\n二、群众体育：贯彻《云南省全民健身条例》精神,不断完善国民体质监测与运动促进健康体系；推动科学健身指导下沉基层，开展形式多样的科学健身活动，广泛普及科学健身、体医融合、体重管理、科学运动知识；完善全民健身数据平台，赋能全民健身发展；树立国家体育锻炼标准达标测验工作示范，举办首届邀请赛推广普及锻炼标准。坚持科学、严谨、规范原则，高质量组织开展云南省全民健身活动状况调查和云南省第六次国民体质监测工作。\n三、数字体育：依托云南数字体育项目建设，持续完善“一中心两平台”的建设，围绕青少年体育、群众体育、竞技体育、体育产业四大核心业务的工作需求，以先进的信息技术为手段，推动\"五个数字化\"的整体工作框架，实现高效智慧办公、全民健身业务数字化管理、青少年体育工作信息化支撑和数字化体育科研，助力高原体育特色强省目标的实现。","产出指标","质量指标","省体育局网站通过检查达标等级",">=","良好",null,"定性指标","省体育局网站通过省政府网站检查达标等级。"]
["体科所体彩公益金专项经费","一、竞技体育：进一步做好备战亚运会的科技攻关与科技服务工作，推动“训科一体化”的进程和深入项目研究；进一步深入探索世居高原运动员选材指标体系及操作规范的建立；逐步完善呈贡科研中心实验室建设。完善云南省反兴奋剂长效治理体系，确保运动员干干净净训练和参赛。\n二、群众体育：贯彻《云南省全民健身条例》精神,不断完善国民体质监测与运动促进健康体系；推动科学健身指导下沉基层，开展形式多样的科学健身活动，广泛普及科学健身、体医融合、体重管理、科学运动知识；完善全民健身数据平台，赋能全民健身发展；树立国家体育锻炼标准达标测验工作示范，举办首届邀请赛推广普及锻炼标准。坚持科学、严谨、规范原则，高质量组织开展云南省全民健身活动状况调查和云南省第六次国民体质监测工作。\n三、数字体育：依托云南数字体育项目建设，持续完善“一中心两平台”的建设，围绕青少年体育、群众体育、竞技体育、体育产业四大核心业务的工作需求，以先进的信息技术为手段，推动\"五个数字化\"的整体工作框架，实现高效智慧办公、全民健身业务数字化管理、青少年体育工作信息化支撑和数字化体育科研，助力高原体育特色强省目标的实现。","产出指标","质量指标","培训人员考核合格率",">=","95","%","定量指标","举办培训班人才培养培训考核通过率。"]
["体科所体彩公益金专项经费","一、竞技体育：进一步做好备战亚运会的科技攻关与科技服务工作，推动“训科一体化”的进程和深入项目研究；进一步深入探索世居高原运动员选材指标体系及操作规范的建立；逐步完善呈贡科研中心实验室建设。完善云南省反兴奋剂长效治理体系，确保运动员干干净净训练和参赛。\n二、群众体育：贯彻《云南省全民健身条例》精神,不断完善国民体质监测与运动促进健康体系；推动科学健身指导下沉基层，开展形式多样的科学健身活动，广泛普及科学健身、体医融合、体重管理、科学运动知识；完善全民健身数据平台，赋能全民健身发展；树立国家体育锻炼标准达标测验工作示范，举办首届邀请赛推广普及锻炼标准。坚持科学、严谨、规范原则，高质量组织开展云南省全民健身活动状况调查和云南省第六次国民体质监测工作。\n三、数字体育：依托云南数字体育项目建设，持续完善“一中心两平台”的建设，围绕青少年体育、群众体育、竞技体育、体育产业四大核心业务的工作需求，以先进的信息技术为手段，推动\"五个数字化\"的整体工作框架，实现高效智慧办公、全民健身业务数字化管理、青少年体育工作信息化支撑和数字化体育科研，助力高原体育特色强省目标的实现。","产出指标","质量指标","国民体质监测样本完整率",">=","95","%","定量指标","测试完成并提交国民体质监测平台。"]
["体科所体彩公益金专项经费","一、竞技体育：进一步做好备战亚运会的科技攻关与科技服务工作，推动“训科一体化”的进程和深入项目研究；进一步深入探索世居高原运动员选材指标体系及操作规范的建立；逐步完善呈贡科研中心实验室建设。完善云南省反兴奋剂长效治理体系，确保运动员干干净净训练和参赛。\n二、群众体育：贯彻《云南省全民健身条例》精神,不断完善国民体质监测与运动促进健康体系；推动科学健身指导下沉基层，开展形式多样的科学健身活动，广泛普及科学健身、体医融合、体重管理、科学运动知识；完善全民健身数据平台，赋能全民健身发展；树立国家体育锻炼标准达标测验工作示范，举办首届邀请赛推广普及锻炼标准。坚持科学、严谨、规范原则，高质量组织开展云南省全民健身活动状况调查和云南省第六次国民体质监测工作。\n三、数字体育：依托云南数字体育项目建设，持续完善“一中心两平台”的建设，围绕青少年体育、群众体育、竞技体育、体育产业四大核心业务的工作需求，以先进的信息技术为手段，推动\"五个数字化\"的整体工作框架，实现高效智慧办公、全民健身业务数字化管理、青少年体育工作信息化支撑和数字化体育科研，助力高原体育特色强省目标的实现。","产出指标","时效指标","科研设备购置计划完成及时率","=","100","%","定量指标","采购双能X线骨密度体成分测试仪、肌肉状态测试分析仪、上肢无氧功、近红外光谱脑功能成像、测速仪、全自动生化分析仪及选材测试设备计划完成及时率。"]
["体科所体彩公益金专项经费","一、竞技体育：进一步做好备战亚运会的科技攻关与科技服务工作，推动“训科一体化”的进程和深入项目研究；进一步深入探索世居高原运动员选材指标体系及操作规范的建立；逐步完善呈贡科研中心实验室建设。完善云南省反兴奋剂长效治理体系，确保运动员干干净净训练和参赛。\n二、群众体育：贯彻《云南省全民健身条例》精神,不断完善国民体质监测与运动促进健康体系；推动科学健身指导下沉基层，开展形式多样的科学健身活动，广泛普及科学健身、体医融合、体重管理、科学运动知识；完善全民健身数据平台，赋能全民健身发展；树立国家体育锻炼标准达标测验工作示范，举办首届邀请赛推广普及锻炼标准。坚持科学、严谨、规范原则，高质量组织开展云南省全民健身活动状况调查和云南省第六次国民体质监测工作。\n三、数字体育：依托云南数字体育项目建设，持续完善“一中心两平台”的建设，围绕青少年体育、群众体育、竞技体育、体育产业四大核心业务的工作需求，以先进的信息技术为手段，推动\"五个数字化\"的整体工作框架，实现高效智慧办公、全民健身业务数字化管理、青少年体育工作信息化支撑和数字化体育科研，助力高原体育特色强省目标的实现。","产出指标","时效指标","项目完成时限","=","2026年12月",null,"定性指标","项目完成时限。"]
["体科所体彩公益金专项经费","一、竞技体育：进一步做好备战亚运会的科技攻关与科技服务工作，推动“训科一体化”的进程和深入项目研究；进一步深入探索世居高原运动员选材指标体系及操作规范的建立；逐步完善呈贡科研中心实验室建设。完善云南省反兴奋剂长效治理体系，确保运动员干干净净训练和参赛。\n二、群众体育：贯彻《云南省全民健身条例》精神,不断完善国民体质监测与运动促进健康体系；推动科学健身指导下沉基层，开展形式多样的科学健身活动，广泛普及科学健身、体医融合、体重管理、科学运动知识；完善全民健身数据平台，赋能全民健身发展；树立国家体育锻炼标准达标测验工作示范，举办首届邀请赛推广普及锻炼标准。坚持科学、严谨、规范原则，高质量组织开展云南省全民健身活动状况调查和云南省第六次国民体质监测工作。\n三、数字体育：依托云南数字体育项目建设，持续完善“一中心两平台”的建设，围绕青少年体育、群众体育、竞技体育、体育产业四大核心业务的工作需求，以先进的信息技术为手段，推动\"五个数字化\"的整体工作框架，实现高效智慧办公、全民健身业务数字化管理、青少年体育工作信息化支撑和数字化体育科研，助力高原体育特色强省目标的实现。","产出指标","时效指标","人才培养培训计划完成及时率","=","100","%","定量指标","举办培训班人才培养培训计划完成及时率。"]
["体科所体彩公益金专项经费","一、竞技体育：进一步做好备战亚运会的科技攻关与科技服务工作，推动“训科一体化”的进程和深入项目研究；进一步深入探索世居高原运动员选材指标体系及操作规范的建立；逐步完善呈贡科研中心实验室建设。完善云南省反兴奋剂长效治理体系，确保运动员干干净净训练和参赛。\n二、群众体育：贯彻《云南省全民健身条例》精神,不断完善国民体质监测与运动促进健康体系；推动科学健身指导下沉基层，开展形式多样的科学健身活动，广泛普及科学健身、体医融合、体重管理、科学运动知识；完善全民健身数据平台，赋能全民健身发展；树立国家体育锻炼标准达标测验工作示范，举办首届邀请赛推广普及锻炼标准。坚持科学、严谨、规范原则，高质量组织开展云南省全民健身活动状况调查和云南省第六次国民体质监测工作。\n三、数字体育：依托云南数字体育项目建设，持续完善“一中心两平台”的建设，围绕青少年体育、群众体育、竞技体育、体育产业四大核心业务的工作需求，以先进的信息技术为手段，推动\"五个数字化\"的整体工作框架，实现高效智慧办公、全民健身业务数字化管理、青少年体育工作信息化支撑和数字化体育科研，助力高原体育特色强省目标的实现。","效益指标","社会效益","对运动队训练科学化提升效率","=","100","%","定量指标","对运动队训练科学化提升效率。"]
["体科所体彩公益金专项经费","一、竞技体育：进一步做好备战亚运会的科技攻关与科技服务工作，推动“训科一体化”的进程和深入项目研究；进一步深入探索世居高原运动员选材指标体系及操作规范的建立；逐步完善呈贡科研中心实验室建设。完善云南省反兴奋剂长效治理体系，确保运动员干干净净训练和参赛。\n二、群众体育：贯彻《云南省全民健身条例》精神,不断完善国民体质监测与运动促进健康体系；推动科学健身指导下沉基层，开展形式多样的科学健身活动，广泛普及科学健身、体医融合、体重管理、科学运动知识；完善全民健身数据平台，赋能全民健身发展；树立国家体育锻炼标准达标测验工作示范，举办首届邀请赛推广普及锻炼标准。坚持科学、严谨、规范原则，高质量组织开展云南省全民健身活动状况调查和云南省第六次国民体质监测工作。\n三、数字体育：依托云南数字体育项目建设，持续完善“一中心两平台”的建设，围绕青少年体育、群众体育、竞技体育、体育产业四大核心业务的工作需求，以先进的信息技术为手段，推动\"五个数字化\"的整体工作框架，实现高效智慧办公、全民健身业务数字化管理、青少年体育工作信息化支撑和数字化体育科研，助力高原体育特色强省目标的实现。","效益指标","社会效益","提高省体育局非密档案电子化率",">=","80","%","定量指标","提高省体育局非密档案电子化率。"]
["体科所体彩公益金专项经费","一、竞技体育：进一步做好备战亚运会的科技攻关与科技服务工作，推动“训科一体化”的进程和深入项目研究；进一步深入探索世居高原运动员选材指标体系及操作规范的建立；逐步完善呈贡科研中心实验室建设。完善云南省反兴奋剂长效治理体系，确保运动员干干净净训练和参赛。\n二、群众体育：贯彻《云南省全民健身条例》精神,不断完善国民体质监测与运动促进健康体系；推动科学健身指导下沉基层，开展形式多样的科学健身活动，广泛普及科学健身、体医融合、体重管理、科学运动知识；完善全民健身数据平台，赋能全民健身发展；树立国家体育锻炼标准达标测验工作示范，举办首届邀请赛推广普及锻炼标准。坚持科学、严谨、规范原则，高质量组织开展云南省全民健身活动状况调查和云南省第六次国民体质监测工作。\n三、数字体育：依托云南数字体育项目建设，持续完善“一中心两平台”的建设，围绕青少年体育、群众体育、竞技体育、体育产业四大核心业务的工作需求，以先进的信息技术为手段，推动\"五个数字化\"的整体工作框架，实现高效智慧办公、全民健身业务数字化管理、青少年体育工作信息化支撑和数字化体育科研，助力高原体育特色强省目标的实现。","满意度指标","服务对象满意度","受益群体满意度",">=","85","%","定量指标","受益群体满意度。"]
["体科所体彩公益金专项经费","一、竞技体育：进一步做好备战亚运会的科技攻关与科技服务工作，推动“训科一体化”的进程和深入项目研究；进一步深入探索世居高原运动员选材指标体系及操作规范的建立；逐步完善呈贡科研中心实验室建设。完善云南省反兴奋剂长效治理体系，确保运动员干干净净训练和参赛。\n二、群众体育：贯彻《云南省全民健身条例》精神,不断完善国民体质监测与运动促进健康体系；推动科学健身指导下沉基层，开展形式多样的科学健身活动，广泛普及科学健身、体医融合、体重管理、科学运动知识；完善全民健身数据平台，赋能全民健身发展；树立国家体育锻炼标准达标测验工作示范，举办首届邀请赛推广普及锻炼标准。坚持科学、严谨、规范原则，高质量组织开展云南省全民健身活动状况调查和云南省第六次国民体质监测工作。\n三、数字体育：依托云南数字体育项目建设，持续完善“一中心两平台”的建设，围绕青少年体育、群众体育、竞技体育、体育产业四大核心业务的工作需求，以先进的信息技术为手段，推动\"五个数字化\"的整体工作框架，实现高效智慧办公、全民健身业务数字化管理、青少年体育工作信息化支撑和数字化体育科研，助力高原体育特色强省目标的实现。","成本指标","经济成本指标","科研设备采购成本","<=","741.99","万元","定量指标","科研设备购置成本。"]
["其他人员支出","做好本单位人员保障，确保全年3人工资正常发放，支持单位正常履职。","产出指标","数量指标","工资福利发放编外长期聘用人员数","=","3","人","定量指标","规范保障其他人员薪酬及相关支出，确保经费专款专用、合规发放，稳定人员队伍，高效支撑单位辅助工作与服务保障落地，提升协同效能，保障各项业务有序运转。"]
["其他人员支出","做好本单位人员保障，确保全年3人工资正常发放，支持单位正常履职。","产出指标","质量指标","外聘人员工资发放准确率","=","100","%","定量指标","外聘人员工资发放准确率。"]
["其他人员支出","做好本单位人员保障，确保全年3人工资正常发放，支持单位正常履职。","产出指标","时效指标","月工资发放时间","<=","15","日","定量指标","编外长期聘用人员工资发放时间。"]
["其他人员支出","做好本单位人员保障，确保全年3人工资正常发放，支持单位正常履职。","效益指标","可持续影响","项目持续发挥作用的期限","=","1年以上",null,"定性指标","发放编外人员工资持续发挥作用期限。"]
["其他人员支出","做好本单位人员保障，确保全年3人工资正常发放，支持单位正常履职。","满意度指标","服务对象满意度","外聘人员满意度",">=","85","%","定量指标","外聘人员满意度。"]
["人才发展专项资金","通过实施“兴滇英才支持计划”促进相关人才项目成果的转化运用，进一步推动宣传思想文化领域重点人才工程、人才队伍建设等工作取得新成绩，加强高素质专业化人才队伍的打造，为建设文化强省提供人才支撑。","产出指标","数量指标","支持兴滇英才计划文化名家数\t","=","1.00","人","定量指标","反映支持“兴滇英才支持计划”文化名家数情况。"]
["人才发展专项资金","通过实施“兴滇英才支持计划”促进相关人才项目成果的转化运用，进一步推动宣传思想文化领域重点人才工程、人才队伍建设等工作取得新成绩，加强高素质专业化人才队伍的打造，为建设文化强省提供人才支撑。","产出指标","质量指标","获支持对象准确率","=","100","%","定量指标","反映获支持对象认定的准确性情况。\n获支持对象准确率=抽检符合标准的支持对象数/抽检实际支持对象数×100%。"]
["人才发展专项资金","通过实施“兴滇英才支持计划”促进相关人才项目成果的转化运用，进一步推动宣传思想文化领域重点人才工程、人才队伍建设等工作取得新成绩，加强高素质专业化人才队伍的打造，为建设文化强省提供人才支撑。","效益指标","社会效益","提供研究成果数",">=","1.00","项","定量指标","受支持人才发表学术论文、出版学术著作、提供决策咨询报告等成果的数量情况。\n实际提供研究成果率=提供的研究成果数/计划提供研究成果数×100%。"]
["人才发展专项资金","通过实施“兴滇英才支持计划”促进相关人才项目成果的转化运用，进一步推动宣传思想文化领域重点人才工程、人才队伍建设等工作取得新成绩，加强高素质专业化人才队伍的打造，为建设文化强省提供人才支撑。","满意度指标","服务对象满意度","人才满意度",">=","90","%","定量指标","反映文化名家对“兴滇英才支持计划”的满意程度。"]
["政务信息化运维服务项目补助资金","依托云南数字体育项目建设，持续完善“一中心两平台”的建设，围绕青少年体育、群众体育、竞技体育、体育产业四大核心业务的工作需求，以先进的信息技术为手段，推动\"五个数字化\"的整体工作框架，实现高效智慧办公、全民健身业务数字化管理、青少年体育工作信息化支撑和数字化体育科研，助力高原体育特色强省目标的实现。","产出指标","数量指标","体育事业信息化保障内容",">=","4","项","定量指标","1、网络保障；2、业务系统运行正常；3、信息化运维；4、数字体育信息服务。"]
["政务信息化运维服务项目补助资金","依托云南数字体育项目建设，持续完善“一中心两平台”的建设，围绕青少年体育、群众体育、竞技体育、体育产业四大核心业务的工作需求，以先进的信息技术为手段，推动\"五个数字化\"的整体工作框架，实现高效智慧办公、全民健身业务数字化管理、青少年体育工作信息化支撑和数字化体育科研，助力高原体育特色强省目标的实现。","产出指标","数量指标","完成网络信息安全工作内容项数",">=","3","项","定量指标","1、完成等保测评；2、完成密保测评；3完成态势感知系统建设。"]
["政务信息化运维服务项目补助资金","依托云南数字体育项目建设，持续完善“一中心两平台”的建设，围绕青少年体育、群众体育、竞技体育、体育产业四大核心业务的工作需求，以先进的信息技术为手段，推动\"五个数字化\"的整体工作框架，实现高效智慧办公、全民健身业务数字化管理、青少年体育工作信息化支撑和数字化体育科研，助力高原体育特色强省目标的实现。","产出指标","质量指标","省体育局网站通过检查达标等级",">=","良好",null,"定性指标","省体育局网站通过省政府网站检查达标等级。"]
["政务信息化运维服务项目补助资金","依托云南数字体育项目建设，持续完善“一中心两平台”的建设，围绕青少年体育、群众体育、竞技体育、体育产业四大核心业务的工作需求，以先进的信息技术为手段，推动\"五个数字化\"的整体工作框架，实现高效智慧办公、全民健身业务数字化管理、青少年体育工作信息化支撑和数字化体育科研，助力高原体育特色强省目标的实现。","产出指标","质量指标","体育信息化服务业务工作中断次数","<=","5","次","定量指标","保障云南省青少年体育信息化服务业务工作中断次数。"]
["政务信息化运维服务项目补助资金","依托云南数字体育项目建设，持续完善“一中心两平台”的建设，围绕青少年体育、群众体育、竞技体育、体育产业四大核心业务的工作需求，以先进的信息技术为手段，推动\"五个数字化\"的整体工作框架，实现高效智慧办公、全民健身业务数字化管理、青少年体育工作信息化支撑和数字化体育科研，助力高原体育特色强省目标的实现。","产出指标","时效指标","项目完成时限","=","2026年12月",null,"定性指标","项目完成时限。"]
["政务信息化运维服务项目补助资金","依托云南数字体育项目建设，持续完善“一中心两平台”的建设，围绕青少年体育、群众体育、竞技体育、体育产业四大核心业务的工作需求，以先进的信息技术为手段，推动\"五个数字化\"的整体工作框架，实现高效智慧办公、全民健身业务数字化管理、青少年体育工作信息化支撑和数字化体育科研，助力高原体育特色强省目标的实现。","效益指标","社会效益","云南省体育局网站访问量",">=","50000","条","定量指标","云南省体育局网站访问量。"]
["政务信息化运维服务项目补助资金","依托云南数字体育项目建设，持续完善“一中心两平台”的建设，围绕青少年体育、群众体育、竞技体育、体育产业四大核心业务的工作需求，以先进的信息技术为手段，推动\"五个数字化\"的整体工作框架，实现高效智慧办公、全民健身业务数字化管理、青少年体育工作信息化支撑和数字化体育科研，助力高原体育特色强省目标的实现。","满意度指标","服务对象满意度","体育信息化工作受益群体满意度",">=","85","%","定量指标","体育信息化工作受益群体满意度。"]
["全国常态化全民健身活动状况调查及国民体质监测工作专项经费","配合国家体育总局开展常态化全民健身活动状况调查与国民体质监测工作，在为相关政策制定提供及时准确的我省数据支撑的同时，探索将体质检测与科学健身、体卫融合等工作深度融合、引导布局全民健身基层公共服务网络，从而为促进全民健身和全民健康的深度融合提供有力保障。","产出指标","数量指标","全民健身状况调查及体质监测人数",">=","3000","人","定量指标","全民健身活动状况调查及国民体质监测人数。"]
["全国常态化全民健身活动状况调查及国民体质监测工作专项经费","配合国家体育总局开展常态化全民健身活动状况调查与国民体质监测工作，在为相关政策制定提供及时准确的我省数据支撑的同时，探索将体质检测与科学健身、体卫融合等工作深度融合、引导布局全民健身基层公共服务网络，从而为促进全民健身和全民健康的深度融合提供有力保障。","产出指标","质量指标","测量数据的有效性",">=","95","%","定量指标","测量数据的有效性。"]
["全国常态化全民健身活动状况调查及国民体质监测工作专项经费","配合国家体育总局开展常态化全民健身活动状况调查与国民体质监测工作，在为相关政策制定提供及时准确的我省数据支撑的同时，探索将体质检测与科学健身、体卫融合等工作深度融合、引导布局全民健身基层公共服务网络，从而为促进全民健身和全民健康的深度融合提供有力保障。","产出指标","时效指标","调查测试完成时间","<=","2026年12月",null,"定性指标","调查测试完成时间。"]
["全国常态化全民健身活动状况调查及国民体质监测工作专项经费","配合国家体育总局开展常态化全民健身活动状况调查与国民体质监测工作，在为相关政策制定提供及时准确的我省数据支撑的同时，探索将体质检测与科学健身、体卫融合等工作深度融合、引导布局全民健身基层公共服务网络，从而为促进全民健身和全民健康的深度融合提供有力保障。","效益指标","社会效益","科学健身指导惠及数占总数比例",">=","80","%","定量指标","进行科学健身指导惠及人数占全部监测人数百分比。"]
["全国常态化全民健身活动状况调查及国民体质监测工作专项经费","配合国家体育总局开展常态化全民健身活动状况调查与国民体质监测工作，在为相关政策制定提供及时准确的我省数据支撑的同时，探索将体质检测与科学健身、体卫融合等工作深度融合、引导布局全民健身基层公共服务网络，从而为促进全民健身和全民健康的深度融合提供有力保障。","满意度指标","服务对象满意度","被指导人员满意度",">=","85","%","定量指标","被指导人员满意度。"]

{"sheet":"单位政府性基金预算表06","index":9,"n_rows":10,"n_cols":6,"rows_kept":10,"merged":[[1,0,1,5],[3,0,4,0],[3,1,4,1],[3,2,4,2],[3,3,3,5],[9,0,9,2]]}
[{"$nulls":5},"预算06表"]
["2026年政府性基金预算支出预算表"]
[{"$f":"\"单位名称：\"&\"云南省体育科学研究所\"","v":"单位名称：云南省体育科学研究所"},{"$nulls":4},"单位:元"]
["单位名称","科目编码","科目名称","政府性基金预算支出"]
[{"$nulls":3},"合计","基本支出","项目支出"]
[1,2,3,4,5,6]
["云南省体育科学研究所","229","其他支出",{"v":26170837.48,"d":"26,170,837.48"},null,{"v":26170837.48,"d":"26,170,837.48"}]
["云南省体育科学研究所","22960","彩票公益金安排的支出",{"v":26170837.48,"d":"26,170,837.48"},null,{"v":26170837.48,"d":"26,170,837.48"}]
["云南省体育科学研究所","2296003","用于体育事业的彩票公益金支出",{"v":26170837.48,"d":"26,170,837.48"},null,{"v":26170837.48,"d":"26,170,837.48"}]
["合  计",null,"合  计",{"v":26170837.48,"d":"26,170,837.48"},null,{"v":26170837.48,"d":"26,170,837.48"}]

{"sheet":"单位政府采购预算表07","index":10,"n_rows":46,"n_cols":17,"rows_kept":46,"merged":[[1,0,1,16],[2,0,2,5],[3,0,5,0],[3,1,5,1],[3,2,5,2],[3,3,5,3],[3,4,5,4],[3,5,5,5],[3,6,3,16],[4,6,5,6],[4,7,5,7],[4,8,5,8],[4,9,5,9],[4,10,5,10],[4,11,4,16],[45,0,45,4]]}
[{"$nulls":16},"预算07表"]
["2026年单位政府采购预算表"]
[{"$f":"\"单位名称：\"&\"云南省体育科学研究所\"","v":"单位名称：云南省体育科学研究所"},{"$nulls":15},"单位：元"]
["预算项目","采购项目","采购品目","计量\n单位","数量","面向中小企业预留资金","资金来源"]
[{"$nulls":6},"合计","一般公共预算","政府性\n基金","国有资本经营收益","财政专户管理的收入","单位自筹"]
[{"$nulls":7},"小计",{"$nulls":3},"小计","事业收入","事业单位\n经营收入","上级补助收入","附属单位上缴收入","其他收入"]
[1,2,3,4,5,6,7,8,9,10,11,12,13,14,15,16,17]
["云南省体育科学研究所",{"$nulls":4},{"v":9785700,"d":"9,785,700.00"},{"v":18276200,"d":"18,276,200.00"},{"v":115800,"d":"115,800.00"},{"v":17560400,"d":"17,560,400.00"},null,null,{"v":600000,"d":"600,000.00"},null,null,{"v":600000,"d":"600,000.00"}]
["公车购置及运维费","采购公务用车车辆维修保养费","C23120301 车辆维修和保养服务","项",1,{"v":15000,"d":"15,000.00"},{"v":15000,"d":"15,000.00"},{"v":15000,"d":"15,000.00"}]
["公车购置及运维费","采购公务用车保险费","C1804010201 机动车保险服务","项",1,{"v":4800,"d":"4,800.00"},{"v":4800,"d":"4,800.00"},{"v":4800,"d":"4,800.00"}]
["一般公用经费","采购保安服务","C21040001 物业管理服务","项",2,{"v":96000,"d":"96,000.00"},{"v":96000,"d":"96,000.00"},{"v":96000,"d":"96,000.00"}]
["体科所体彩公益金专项经费","LED显示大屏","A02021103 LED显示屏","台",1,{"v":200000,"d":"200,000.00"},{"v":200000,"d":"200,000.00"},null,{"v":200000,"d":"200,000.00"}]
["体科所体彩公益金专项经费","不间断电源","A02061504 不间断电源","台",1,{"v":139900,"d":"139,900.00"},{"v":139900,"d":"139,900.00"},null,{"v":139900,"d":"139,900.00"}]
["体科所体彩公益金专项经费","云南省体育局档案电子化服务","C23200000 档案管理服务","项",1,{"v":350000,"d":"350,000.00"},{"v":350000,"d":"350,000.00"},null,{"v":350000,"d":"350,000.00"}]
["体科所体彩公益金专项经费","云南省2026年度青少年赛事信息服务","C23070000 公共信息与宣传服务","项",1,{"v":700000,"d":"700,000.00"},{"v":700000,"d":"700,000.00"},null,{"v":700000,"d":"700,000.00"}]
["体科所体彩公益金专项经费","运动促健康科普文化展板委托业务费","C23070000 公共信息与宣传服务","项",1,{"v":300000,"d":"300,000.00"},{"v":300000,"d":"300,000.00"},null,{"v":300000,"d":"300,000.00"}]
["体科所体彩公益金专项经费","科普文化宣传讲解机器人","A02050000 机械设备","台",1,{"v":300000,"d":"300,000.00"},{"v":300000,"d":"300,000.00"},null,{"v":300000,"d":"300,000.00"}]
["体科所体彩公益金专项经费","便携式全民健身科普测试仪器（2台）","A02469900 其他体育设备设施","台",2,{"v":250000,"d":"250,000.00"},{"v":250000,"d":"250,000.00"},null,{"v":250000,"d":"250,000.00"}]
["体科所体彩公益金专项经费","测速仪","A02469900 其他体育设备设施","台",1,null,{"v":120000,"d":"120,000.00"},null,{"v":120000,"d":"120,000.00"}]
["体科所体彩公益金专项经费","动态步态跑姿检测系统","A02469900 其他体育设备设施","台",2,{"v":300000,"d":"300,000.00"},{"v":300000,"d":"300,000.00"},null,{"v":300000,"d":"300,000.00"}]
["体科所体彩公益金专项经费","国家体育锻炼标准达标测验专用设备购置（第二批）","A02469900 其他体育设备设施","批",1,{"v":500000,"d":"500,000.00"},{"v":500000,"d":"500,000.00"},null,{"v":500000,"d":"500,000.00"}]
["体科所体彩公益金专项经费","国家体育锻炼标准达标测验专用设备购置（第一批）","A02469900 其他体育设备设施","批",1,{"v":300000,"d":"300,000.00"},{"v":300000,"d":"300,000.00"},null,{"v":300000,"d":"300,000.00"}]
["体科所体彩公益金专项经费","肌肉状态测试分析仪","A02469900 其他体育设备设施","台",1,null,{"v":800000,"d":"800,000.00"},null,{"v":800000,"d":"800,000.00"}]
["体科所体彩公益金专项经费","近红外光谱脑功能成像","A02469900 其他体育设备设施","台",1,{"v":980000,"d":"980,000.00"},{"v":980000,"d":"980,000.00"},null,{"v":980000,"d":"980,000.00"}]
["体科所体彩公益金专项经费","全自动生化分析仪","A02469900 其他体育设备设施","台",1,null,{"v":1000000,"d":"1,000,000.00"},null,{"v":1000000,"d":"1,000,000.00"}]
["体科所体彩公益金专项经费","上肢无氧功","A02469900 其他体育设备设施","台",1,null,{"v":400000,"d":"400,000.00"},null,{"v":400000,"d":"400,000.00"}]
["体科所体彩公益金专项经费","双能X线骨密度体成分测试仪","A02469900 其他体育设备设施","项",1,null,{"v":2000000,"d":"2,000,000.00"},null,{"v":2000000,"d":"2,000,000.00"}]
["体科所体彩公益金专项经费","选材测试设备","A02469900 其他体育设备设施","台",2,{"v":30000,"d":"30,000.00"},{"v":30000,"d":"30,000.00"},null,{"v":30000,"d":"30,000.00"}]
["体科所体彩公益金专项经费","竞技体育试剂、耗材费","A07029900 其他医药品","批",1,{"v":800000,"d":"800,000.00"},{"v":800000,"d":"800,000.00"},null,{"v":800000,"d":"800,000.00"}]
["体科所体彩公益金专项经费","全民健身活动状况调查及国民体质监测委托业务费","C23060200 社会调查服务","项",1,{"v":370000,"d":"370,000.00"},{"v":3700000,"d":"3,700,000.00"},null,{"v":3700000,"d":"3,700,000.00"}]
["体科所体彩公益金专项经费","云南省全民健身平台数据服务","C16030000 数据处理服务","项",1,{"v":300000,"d":"300,000.00"},{"v":300000,"d":"300,000.00"},null,{"v":300000,"d":"300,000.00"}]
["体科所体彩公益金专项经费","云南省国家体育锻炼标准推广技能比赛委托业务费","C06040100 体育组织服务","项",1,{"v":600000,"d":"600,000.00"},{"v":600000,"d":"600,000.00"},null,{"v":600000,"d":"600,000.00"}]
["体科所体彩公益金专项经费","云南省体育信息数据服务","C16090000 信息技术咨询服务","项",1,null,{"v":560000,"d":"560,000.00"},null,{"v":560000,"d":"560,000.00"}]
["体科所体彩公益金专项经费","“云南省竞技体育管理系统”升级","A0806030302 行业应用软件","项",1,{"v":200000,"d":"200,000.00"},{"v":200000,"d":"200,000.00"},null,{"v":200000,"d":"200,000.00"}]
["体科所体彩公益金专项经费","七彩云南全民健身志愿服务管理平台开发","A0806030302 行业应用软件","项",1,{"v":300000,"d":"300,000.00"},{"v":300000,"d":"300,000.00"},null,{"v":300000,"d":"300,000.00"}]
["体科所体彩公益金专项经费","全民健身工作平台升级维护","A0806030302 行业应用软件","项",1,{"v":300000,"d":"300,000.00"},{"v":300000,"d":"300,000.00"},null,{"v":300000,"d":"300,000.00"}]
["体科所体彩公益金专项经费","数字体育一期信创改造","A0806030302 行业应用软件","项",1,null,{"v":280500,"d":"280,500.00"},null,{"v":280500,"d":"280,500.00"}]
["体科所体彩公益金专项经费","赛风赛纪及反兴奋剂准入测试系统","C16010302 行业应用软件开发服务","项",1,{"v":300000,"d":"300,000.00"},{"v":300000,"d":"300,000.00"},null,{"v":300000,"d":"300,000.00"}]
["体科所体彩公益金专项经费","云南省青少年运动员文化学习及思政教育学习系统","C16010302 行业应用软件开发服务","项",1,{"v":120000,"d":"120,000.00"},{"v":120000,"d":"120,000.00"},null,{"v":120000,"d":"120,000.00"}]
["体科所体彩公益金专项经费","云南省体育事业预算管理系统功能升级，云南省体育局内部控制管理系统实物资产清查与管理模块开发及云南省体育产业管理系统开发","C16010302 行业应用软件开发服务","项",1,{"v":850000,"d":"850,000.00"},{"v":850000,"d":"850,000.00"},null,{"v":850000,"d":"850,000.00"}]
["体科所体彩公益金专项经费","反兴奋剂资料印刷费","C23090100 印刷服务","项",1,{"v":150000,"d":"150,000.00"},{"v":150000,"d":"150,000.00"},null,{"v":150000,"d":"150,000.00"}]
["体科所体彩公益金专项经费","国家体育锻炼标准工作手册印刷费","C23090100 印刷服务","项",1,{"v":30000,"d":"30,000.00"},{"v":30000,"d":"30,000.00"},null,{"v":30000,"d":"30,000.00"}]
["体科所体彩公益金专项经费","国民体质监测工作手册印刷费","C23090100 印刷服务","项",1,{"v":50000,"d":"50,000.00"},{"v":50000,"d":"50,000.00"},null,{"v":50000,"d":"50,000.00"}]
["体科所体彩公益金专项经费","全民健身科普服务号运维","C16070000 运行维护服务","项",1,{"v":350000,"d":"350,000.00"},{"v":350000,"d":"350,000.00"},null,{"v":350000,"d":"350,000.00"}]
["全国常态化全民健身活动状况调查及国民体质监测工作专项经费","全国常态化全民健身活动状况调查及国民体质监测委托业务费","C23060200 社会调查服务","项",1,{"v":600000,"d":"600,000.00"},{"v":600000,"d":"600,000.00"},{"$nulls":4},{"v":600000,"d":"600,000.00"},null,null,{"v":600000,"d":"600,000.00"}]
["合  计",{"$nulls":4},{"v":9785700,"d":"9,785,700.00"},{"v":18276200,"d":"18,276,200.00"},{"v":115800,"d":"115,800.00"},{"v":17560400,"d":"17,560,400.00"},null,null,{"v":600000,"d":"600,000.00"},null,null,{"v":600000,"d":"600,000.00"}]

{"sheet":"单位政府购买服务预算表08","index":11,"n_rows":12,"n_cols":14,"rows_kept":12,"merged":[[1,0,1,13],[2,0,2,2],[3,0,5,0],[3,1,5,1],[3,2,5,2],[3,3,3,13],[4,3,5,3],[4,4,5,4],[4,5,5,5],[4,6,5,6],[4,7,5,7],[4,8,4,13],[9,0,9,2]]}
[{"$nulls":13},"预算08表"]
["2026年单位政府购买服务预算表"]
[{"$f":"\"单位名称：\"&\"云南省体育科学研究所\"","v":"单位名称：云南省体育科学研究所"},{"$nulls":12},"单位：元"]
["预算项目","政府购买服务项目","政府购买服务目录","资金来源"]
[{"$nulls":3},"合计","一般公共预算","政府性\n基金","国有资本经营收益","财政专户管理的收入","单位自筹"]
[{"$nulls":8},"小计","事业收入","事业单位\n经营收入","上级补助收入","附属单位上缴收入","其他收入"]
[1,2,3,4,5,6,7,8,9,10,11,12,13,14]
[]
[]
["合  计"]
[]
["本单位2026年度无政府购买服务，故此表为空表。"]

{"sheet":"省对下转移支付预算表09-1","index":12,"n_rows":10,"n_cols":24,"rows_kept":10,"merged":[[1,0,1,23],[2,0,2,8],[3,0,4,0],[3,1,3,3],[3,4,3,23]]}
[{"$nulls":23},"预算09-1表"]
["2026年省对下转移支付预算表"]
[{"$f":"\"单位名称：\"&\"云南省体育科学研究所\"","v":"单位名称：云南省体育科学研究所"},{"$nulls":22},"单位：元"]
["单位名称（项目）","资金来源",null,null,"地区"]
[null,"合计","一般公共预算","政府性基金","昆明","昭通","曲靖","玉溪","红河","文山","普洱","西双版纳","楚雄","大理","保山","德宏","丽江","怒江","迪庆","临沧","宣威","腾冲","镇雄","未分配到地区数"]
[1,2,3,4,5,6,7,8,9,10,11,12,13,14,15,16,17,18,19,20,21,22,23,24]
[]
[]
[]
["本单位2026年度无省对下转移支付项目，故此表为空表。"]

{"sheet":"省对下转移支付绩效目标表09-2","index":13,"n_rows":9,"n_cols":10,"rows_kept":9,"merged":[[1,0,1,9],[2,0,2,7]]}
[{"$nulls":9},"预算09-2表"]
["2026年省对下转移支付绩效目标表"]
[{"$f":"\"单位名称：\"&\"云南省体育科学研究所\"","v":"单位名称：云南省体育科学研究所"}]
["单位名称、项目名称","项目年度绩效目标","一级指标","二级指标","三级指标","指标性质","指标值","度量单位","指标属性","指标内容"]
[1,2,3,4,5,6,7,8,9,10]
[]
[]
[]
["本单位2026年度无省对下转移支付项目，故此表为空表。"]

{"sheet":"新增资产配置表10","index":14,"n_rows":36,"n_cols":8,"rows_kept":36,"merged":[[1,0,1,7],[3,0,4,0],[3,1,4,1],[3,2,4,2],[3,3,4,3],[3,4,4,4],[3,5,3,7],[34,0,34,4],[35,0,35,7]]}
[{"$nulls":7},"预算10表"]
["2026年新增资产配置表"]
[{"$f":"\"单位名称：\"&\"云南省体育科学研究所\"","v":"单位名称：云南省体育科学研究所"}]
["单位名称","资产类别","资产分类代码.名称","资产名称","计量单位","财政部门批复数（元）"]
[{"$nulls":5},"数量","单价","金额"]
["1","2","3","4","5","6","7","8"]
["云南省体育科学研究所","设备","A02021103 LED显示屏","LED显示大屏","台",1,{"v":200000,"d":"200,000.00"},{"v":200000,"d":"200,000.00"}]
["云南省体育科学研究所","设备","A02021499 其他会计机械","凭证装订机","台",1,{"v":1700,"d":"1,700.00"},{"v":1700,"d":"1,700.00"}]
["云南省体育科学研究所","设备","A02050906 工业机器人","科普文化宣传讲解机器人","个",1,{"v":300000,"d":"300,000.00"},{"v":300000,"d":"300,000.00"}]
["云南省体育科学研究所","设备","A02061504 不间断电源","不间断电源","套",1,{"v":139900,"d":"139,900.00"},{"v":139900,"d":"139,900.00"}]
["云南省体育科学研究所","设备","A02469900 其他体育设备设施","AI体态评估管理系统","套",1,{"v":50000,"d":"50,000.00"},{"v":50000,"d":"50,000.00"}]
["云南省体育科学研究所","设备","A02469900 其他体育设备设施","便携式全民健身科普测试仪器","台",2,{"v":125000,"d":"125,000.00"},{"v":250000,"d":"250,000.00"}]
["云南省体育科学研究所","设备","A02469900 其他体育设备设施","测速仪","台",1,{"v":120000,"d":"120,000.00"},{"v":120000,"d":"120,000.00"}]
["云南省体育科学研究所","设备","A02469900 其他体育设备设施","动态步态跑姿检测系统","套",1,{"v":300000,"d":"300,000.00"},{"v":300000,"d":"300,000.00"}]
["云南省体育科学研究所","设备","A02469900 其他体育设备设施","肌肉状态测试分析仪","台",1,{"v":800000,"d":"800,000.00"},{"v":800000,"d":"800,000.00"}]
["云南省体育科学研究所","设备","A02469900 其他体育设备设施","脊柱曲度评估系统","套",1,{"v":135000,"d":"135,000.00"},{"v":135000,"d":"135,000.00"}]
["云南省体育科学研究所","设备","A02469900 其他体育设备设施","近红外光谱脑功能成像","台",1,{"v":980000,"d":"980,000.00"},{"v":980000,"d":"980,000.00"}]
["云南省体育科学研究所","设备","A02469900 其他体育设备设施","颈椎健康评估系统","套",1,{"v":165000,"d":"165,000.00"},{"v":165000,"d":"165,000.00"}]
["云南省体育科学研究所","设备","A02469900 其他体育设备设施","全自动生化分析仪","台",1,{"v":1000000,"d":"1,000,000.00"},{"v":1000000,"d":"1,000,000.00"}]
["云南省体育科学研究所","设备","A02469900 其他体育设备设施","上肢无氧功","台",1,{"v":400000,"d":"400,000.00"},{"v":400000,"d":"400,000.00"}]
["云南省体育科学研究所","设备","A02469900 其他体育设备设施","双能X线骨密度体成分测试仪","台",1,{"v":2000000,"d":"2,000,000.00"},{"v":2000000,"d":"2,000,000.00"}]
["云南省体育科学研究所","设备","A02469900 其他体育设备设施","选材测试设备","套",2,{"v":15000,"d":"15,000.00"},{"v":30000,"d":"30,000.00"}]
["云南省体育科学研究所","设备","A02469900 其他体育设备设施","云南省青少年运动员身份核查设备","台",20,{"v":5000,"d":"5,000.00"},{"v":100000,"d":"100,000.00"}]
["云南省体育科学研究所","设备","A02469900 其他体育设备设施","智能体测评估一体机（含便携式移动工作站）","台",1,{"v":300000,"d":"300,000.00"},{"v":300000,"d":"300,000.00"}]
["云南省体育科学研究所","设备","A02469900 其他体育设备设施","足底压力测试","套",2,{"v":75000,"d":"75,000.00"},{"v":150000,"d":"150,000.00"}]
["云南省体育科学研究所","无形资产","A08060303 应用软件","“云南省竞技体育管理系统”升级","项",1,{"v":200000,"d":"200,000.00"},{"v":200000,"d":"200,000.00"}]
["云南省体育科学研究所","无形资产","A08060303 应用软件","七彩云南全民健身志愿服务管理平台开发","项",1,{"v":300000,"d":"300,000.00"},{"v":300000,"d":"300,000.00"}]
["云南省体育科学研究所","无形资产","A08060303 应用软件","全民健身工作平台升级维护","项",1,{"v":300000,"d":"300,000.00"},{"v":300000,"d":"300,000.00"}]
["云南省体育科学研究所","无形资产","A08060303 应用软件","赛风赛纪及反兴奋剂准入测试系统","项",1,{"v":300000,"d":"300,000.00"},{"v":300000,"d":"300,000.00"}]
["云南省体育科学研究所","无形资产","A08060303 应用软件","数字体育一期信创改造","项",1,{"v":280500,"d":"280,500.00"},{"v":280500,"d":"280,500.00"}]
["云南省体育科学研究所","无形资产","A08060303 应用软件","云南省青少年运动员文化学习及思政教育学习系统软件开发","项",1,{"v":120000,"d":"120,000.00"},{"v":120000,"d":"120,000.00"}]
["云南省体育科学研究所","无形资产","A08060303 应用软件","云南省体育产业管理系统开发","项",1,{"v":450000,"d":"450,000.00"},{"v":450000,"d":"450,000.00"}]
["云南省体育科学研究所","无形资产","A08060303 应用软件","云南省体育局内部控制管理系统实物资产清查与管理模块开发","项",1,{"v":300000,"d":"300,000.00"},{"v":300000,"d":"300,000.00"}]
["云南省体育科学研究所","无形资产","A08060303 应用软件","云南省体育事业预算管理系统功能升级","项",1,{"v":100000,"d":"100,000.00"},{"v":100000,"d":"100,000.00"}]
["合计",{"$nulls":4},50,null,{"v":9772100,"d":"9,772,100.00"}]
["注：涉及土地使用权、房屋、公务用车购置，按照现行相关管理制度规定报批，以职能部门审批意见为准。"]

{"sheet":"中央转移支付补助项目支出预算表11","index":15,"n_rows":14,"n_cols":11,"rows_kept":14,"merged":[[1,0,1,10],[2,0,2,6],[3,0,5,0],[3,1,5,1],[3,2,5,2],[3,3,5,3],[3,4,5,4],[3,5,5,5],[3,6,5,6],[3,7,5,7],[3,8,3,10],[4,8,5,8],[4,9,5,9],[4,10,5,10],[13,0,13,6]]}
[{"$nulls":10},"预算11表"]
["2026年中央转移支付补助项目支出预算表"]
[{"$f":"\"单位名称：\"&\"云南省体育科学研究所\"","v":"单位名称：云南省体育科学研究所"},{"$nulls":9},"单位：元"]
["项目分类","项目名称","项目单位","功能科目编码","功能科目名称","经济科目编码","经济科目名称","合计","上级补助"]
[{"$nulls":8},"一般公共预算","政府性基金预算","国有资本经营预算"]
[{"$nulls":8},"小计"]
[1,2,3,4,5,6,7,8,9,10,11]
[null,"提前下达2026年中央集中彩票公益金支持体育事业专项资金",{"$nulls":5},{"v":2690000,"d":"2,690,000.00"},null,{"v":2690000,"d":"2,690,000.00"}]
["事业发展类","提前下达2026年中央集中彩票公益金支持体育事业专项资金","云南省体育科学研究所","2296003","用于体育事业的彩票公益金支出","30211","差旅费",{"v":200000,"d":"200,000.00"},null,{"v":200000,"d":"200,000.00"}]
["事业发展类","提前下达2026年中央集中彩票公益金支持体育事业专项资金","云南省体育科学研究所","2296003","用于体育事业的彩票公益金支出","30216","培训费",{"v":250000,"d":"250,000.00"},null,{"v":250000,"d":"250,000.00"}]
["事业发展类","提前下达2026年中央集中彩票公益金支持体育事业专项资金","云南省体育科学研究所","2296003","用于体育事业的彩票公益金支出","30218","专用材料费",{"v":900000,"d":"900,000.00"},null,{"v":900000,"d":"900,000.00"}]
["事业发展类","提前下达2026年中央集中彩票公益金支持体育事业专项资金","云南省体育科学研究所","2296003","用于体育事业的彩票公益金支出","30226","劳务费",{"v":190000,"d":"190,000.00"},null,{"v":190000,"d":"190,000.00"}]
["事业发展类","提前下达2026年中央集中彩票公益金支持体育事业专项资金","云南省体育科学研究所","2296003","用于体育事业的彩票公益金支出","30227","委托业务费",{"v":1150000,"d":"1,150,000.00"},null,{"v":1150000,"d":"1,150,000.00"}]
["合  计",{"$nulls":6},{"v":2690000,"d":"2,690,000.00"},null,{"v":2690000,"d":"2,690,000.00"}]

{"sheet":"单位项目支出中期规划预算表12","index":16,"n_rows":13,"n_cols":7,"rows_kept":13,"merged":[[1,0,1,6],[2,0,2,3],[3,0,5,0],[3,1,5,1],[3,2,5,2],[3,3,5,3],[3,4,3,6],[4,4,5,4],[4,5,5,5],[4,6,5,6],[12,0,12,3]]}
[{"$nulls":6},"预算12表"]
["2026年单位项目支出中期规划预算表"]
[{"$f":"\"单位名称：\"&\"云南省体育科学研究所\"","v":"单位名称：云南省体育科学研究所"},{"$nulls":5},"单位：元"]
["项目单位","项目分类","项目名称","项目级次","一般公共预算"]
[{"$nulls":4},"2026年","2027年","2028年"]
[{"$nulls":5},"小计"]
[1,2,3,4,5,6,7]
["云南省体育科学研究所",{"$nulls":3},{"v":2261700,"d":"2,261,700.00"},{"v":2261700,"d":"2,261,700.00"},{"v":2261700,"d":"2,261,700.00"}]
[null,"229 其他运转类","体科所科研测试专项资金","本级",{"v":688800,"d":"688,800.00"},{"v":688800,"d":"688,800.00"},{"v":688800,"d":"688,800.00"}]
[null,"311 专项业务类","人才发展专项资金","本级",{"v":90000,"d":"90,000.00"},{"v":90000,"d":"90,000.00"},{"v":90000,"d":"90,000.00"}]
[null,"312 民生类","其他人员支出","本级",{"v":104000,"d":"104,000.00"},{"v":104000,"d":"104,000.00"},{"v":104000,"d":"104,000.00"}]
[null,"313 事业发展类","政务信息化运维服务项目补助资金","本级",{"v":1378900,"d":"1,378,900.00"},{"v":1378900,"d":"1,378,900.00"},{"v":1378900,"d":"1,378,900.00"}]
["合计","",null,null,{"v":2261700,"d":"2,261,700.00"},{"v":2261700,"d":"2,261,700.00"},{"v":2261700,"d":"2,261,700.00"}]